Cogmind - Beta 17.1 @@@ ROGUE MODE // 2026.09.18 @ 22:19:30 Player: HeartGrenade Result: Destroyed by thrown Meson Extractor Performance ------------- Evolutions (7) 3500 Regions Visited (28) 5600 Robots Destroyed (355) 1775 Value Destroyed (14481) 14481 Prototype IDs (56) 1120 Alien Tech Used (3) 600 Bonus (13227) 13227 TOTAL SCORE: 40303 Bonus ------- High Alert Combat Kills 857 Follower Combat Kills 1842 Hunted by Unchained 1000 Awakened Behemoth Slayer 1000 Network Hubs Disabled 800 Met Data Miner 300 Met Imprinter 300 Met Warlord at Base 500 MAIN.C Attacked Warlord 500 Warlord Defense Kills 2220 MAIN.C Attacked Proxy Base 500 Built Enhanced Grunts 300 A7 Reached Mainframe 300 Met R17 at Cetus 500 Met R17 at Research 2000 Scanned by Researcher 500 Friendly Fire -192 Cogmind --------- Core Integrity 0/1300 Matter 149/300 Energy 30/100 System Corruption 43% Temperature Cool (9) Movement Core (50) Location -3/Quarantine Parts ------- > --- POWER (2) -------- (None) > --- PROPULSION (7) --- (None) > --- UTILITY (10) ----- (None) > --- WEAPON (2) ------- (None) > --- INVENTORY (5) ---- Combat Linear Gravjet Dimensional Node Initializer Subatomic Replicator Vortex Lance (40) CR-A16's Behemoth Slayer Peak State ------------ > --- POWER ------------ Light Particle Reactor Light Particle Reactor > --- PROPULSION ------- Combat Gravmag System Antigrav Array Combat Linear Gravjet Combat Linear Gravjet Combat Linear Gravjet Combat Linear Gravjet > --- UTILITY ---------- Advanced Cooling System Large Storage Unit Machine Analyzer Enhanced Optical Array Advanced Sensor Array Advanced Signal Interpreter Experimental Targeting Computer Advanced Transmission Jammer Advanced Hacking Suite Mapping Drone Bay > --- WEAPON ----------- Core Cannon > --- INVENTORY -------- Combat Linear Gravjet Combat Linear Gravjet Improved Phase Shifter Centrium Medium Armor Plating Long-range Tractor Beam Improved Trap Extractor Dimensional Node Initializer Transdimensional Reconstructor Subatomic Replicator Compact HERF Cannon Hypervelocity Mass Driver Micro-nuke Launcher Vortex Lance Vortex Lance CR-A16's Behemoth Slayer [Rating: 165] Favorites ----------- Power Micro Fission Core Engine Improved Deuterium Engine Power Core Micro Fission Core Reactor Light Antimatter Reactor Propulsion Combat Gravmag System Treads Medium Treads Leg Armored Leg Wheel Armored Huge Wheel Hover Unit Combat Gravmag System Flight Unit Improved Cesium-ion Thruster Utility Enhanced Optical Array Device Improved Sensor Array Storage Large Storage Unit Processor Enhanced Optical Array Hackware Advanced Hacking Suite Protection Makeshift Medium Armor Plating Artifact Phase Redirector Weapon Heavy Phase Cannon Energy Gun Advanced Beam Rifle Energy Cannon Heavy Phase Cannon Ballistic Gun Improved Heavy Machine Gun Ballistic Cannon Hypervelocity Mass Driver Launcher Heavy Shock Bomb Launcher Special Weapon Remote Datajack Impact Weapon Mace Slashing Weapon Phasing Sabre Piercing Weapon CR-A16's Behemoth Slayer Special Melee Weapon Advanced Datajack Build | -11 -10 -10 -9 -8 -7 -7 -7 -7 -6 -6 -6 -6 -6 -5 -5 -5 -5 -5 -4 -4 -4 -4 -4 -4 -4 -4 -3 -3 ------- Run | Yrd Mat Min Mat Mat Fac Low Low Dat Pro Fac Low Low Zio Pro Fac Upp Upp War Pro Fac Was Fac Ext Cet Arc Hub Res Qua Slots Evolved 14 | . . . 2 2 2 . . . . 2 . . . . 2 . . . . 2 . . . . . . 2 . Power 1 | . . . . . . . . . . 1 . . . . . . . . . . . . . . . . . . Propulsion 5 | . . . 1 . 2 . . . . . . . . . 1 . . . . . . . . . . . 1 . Utility 8 | . . . 1 2 . . . . . 1 . . . . 1 . . . . 2 . . . . . . 1 . Weapon . | . . . . . . . . . . . . . . . . . . . . . . . . . . . . . Parts Attached 303 | 5 . 6 21 36 22 3 3 . 6 31 6 3 . 16 44 4 . 14 1 20 . 12 7 11 6 2 18 6 Power 49 | 1 . . 3 5 2 1 . . 2 5 . 1 . 3 7 1 . 2 . 5 . 1 2 2 1 . 3 2 Engine 18 | 1 . . 1 3 2 . . . 2 2 . . . . 3 1 . . . 1 . 1 . . 1 . . . Core 21 | . . . 2 2 . 1 . . . 3 . 1 . 3 4 . . 2 . 1 . . 1 1 . . . . Reactor 10 | . . . . . . . . . . . . . . . . . . . . 3 . . 1 1 . . 3 2 Propulsion 67 | 2 . 2 7 10 7 1 1 . 2 6 1 1 . 6 8 . . 3 1 1 . 2 . 1 . 1 4 . Treads 27 | 2 . . 7 9 2 1 1 . 2 . . 1 . 1 . . . . . . . . . 1 . . . . Leg 9 | . . 2 . . 2 . . . . 4 1 . . . . . . . . . . . . . . . . . Wheel 3 | . . . . . 2 . . . . 1 . . . . . . . . . . . . . . . . . . Hover 27 | . . . . 1 . . . . . 1 . . . 5 8 . . 3 1 1 . 2 . . . 1 4 . Flight 1 | . . . . . 1 . . . . . . . . . . . . . . . . . . . . . . . Utility 121 | . . . 7 13 9 1 1 . . 10 4 . . 5 20 3 . 8 . 10 . 8 3 4 5 . 8 2 Device 55 | . . . 1 5 3 . . . . 3 2 . . 2 10 2 . 5 . 4 . 3 3 2 5 . 5 . Storage 7 | . . . 1 1 1 . . . . . . . . . . . . . . 2 . . . 1 . . . 1 Processor 23 | . . . 2 4 2 . . . . 3 1 . . 2 5 . . 1 . 3 . . . . . . . . Hackware 11 | . . . . . . . . . . 2 . . . . 2 . . . . 1 . 4 . . . . 2 . Protection 24 | . . . 3 3 3 1 1 . . 2 1 . . 1 3 1 . 2 . . . 1 . 1 . . 1 . Artifact 1 | . . . . . . . . . . . . . . . . . . . . . . . . . . . . 1 Weapon 66 | 2 . 4 4 8 4 . 1 . 2 10 1 1 . 2 9 . . 1 . 4 . 1 2 4 . 1 3 2 Energy Gun 13 | 1 . 1 1 3 2 . . . . 2 . 1 . . . . . . . . . . . 2 . . . . Energy Cannon 14 | . . . 2 2 . . . . 1 1 . . . . 3 . . . . 1 . . . . . 1 1 2 Ballistic Gun 15 | 1 . 2 1 . . . 1 . . 7 . . . . 2 . . . . . . . . 1 . . . . Ballistic Cannon 8 | . . . . 1 . . . . . . . . . 1 1 . . . . 2 . 1 1 1 . . . . Launcher 8 | . . 1 . 1 2 . . . . . 1 . . . 1 . . . . . . . . . . . 2 . Special Weapon 2 | . . . . . . . . . . . . . . . 1 . . . . 1 . . . . . . . . Impact Weapon 1 | . . . . 1 . . . . . . . . . . . . . . . . . . . . . . . . Slashing Weapon 1 | . . . . . . . . . 1 . . . . . . . . . . . . . . . . . . . Piercing Weapon 3 | . . . . . . . . . . . . . . 1 1 . . 1 . . . . . . . . . . Special Melee Weapon 1 | . . . . . . . . . . . . . . . . . . . . . . . 1 . . . . . Unidentified Prototypes 33 | . . . 1 4 2 . . . . 4 . . . . 1 1 . 8 . . . 1 . 4 . 1 3 3 Corrupted Parts 2 | . . . . . . . . . . . . . . . . . . . 1 . . . . . . 1 . . System Corruption 6 | . . . . . . . . . . . . . . . . . . . 4 . . . . . . 2 . . Parts Lost 95 | . . 8 . 8 5 1 . . 1 6 4 . . 9 13 . . 2 . 5 . . 1 2 . 1 4 25 Power 15 | . . . . . . . . . 1 1 1 . . 2 2 . . 1 . 2 . . . 1 . . . 4 Propulsion 28 | . . 3 . 1 3 1 . . . 1 2 . . 3 4 . . . . 1 . . . . . 1 2 6 Utility 33 | . . . . 5 2 . . . . 2 1 . . 2 4 . . 1 . 2 . . 1 . . . 2 11 Weapon 19 | . . 5 . 2 . . . . . 2 . . . 2 3 . . . . . . . . 1 . . . 4 Highest Loss Streak 17 | . . 8 . 3 2 1 . . 1 2 3 . . 5 8 . . 1 . 2 . . 1 1 . 1 2 17 To Critical Strikes 3 | . . . . . 1 . . . . . . . . . 1 . . . . . . . . 1 . . . . Average Backups 18 | 2 5 4 11 14 22 23 23 23 22 23 23 24 23 21 13 14 14 14 15 14 14 14 14 14 15 14 14 14 Power 1 | . 1 1 . 1 2 2 2 2 1 1 1 1 1 . . 1 1 . 1 . 1 1 1 . . 1 1 . Propulsion 4 | 1 2 1 2 3 4 5 5 5 5 6 9 9 8 6 1 1 1 1 2 1 1 . 1 1 1 . . 2 Utility 7 | . 1 1 1 2 8 9 9 9 9 10 8 9 9 9 7 7 7 5 7 6 7 7 6 7 7 7 5 3 Weapon 5 | . 1 . 6 6 6 7 7 7 7 5 4 4 4 4 3 5 5 5 5 5 5 5 6 6 6 6 6 6 Tool/Special . | . . . . . . . . . . . . . . . . . . . . . . . . . . . . . Unused Backups 58 | . 1 . 4 11 4 . 1 . 2 3 1 . 1 1 5 . . 2 . 5 . 2 1 2 1 . 2 9 Power 3 | . . . . 1 1 . . . 1 . . . . . . . . . . . . . . . . . . . Propulsion 14 | . . . 1 6 1 . . . . 2 . . . . 1 . . . . . . . . . . . . 3 Utility 27 | . 1 . . 1 2 . 1 . 1 . 1 . 1 1 4 . . 1 . 4 . 2 1 2 1 . 1 2 Weapon 11 | . . . 3 3 . . . . . 1 . . . . . . . 1 . 1 . . . . . . 1 1 Tool/Special 3 | . . . . . . . . . . . . . . . . . . . . . . . . . . . . 3 Average Slot Usage (%) 92 | . 57 49 82 98 92 87 92 78 91 86 84 90 91 91 95 98 98 97 100 99 100 99 99 98 97 100 94 87 Engine 3 | . . . 5 4 7 1 . . 6 6 1 . . . 2 5 5 2 . . 5 5 1 . 4 5 . . Core 4 | . . . 2 4 . 5 7 7 . 3 6 12 13 12 8 5 5 7 11 4 . . . . . . . . Reactor 1 | . . . . . . . . . . . . . . . . . . . . 5 5 5 8 8 6 5 7 7 Treads 9 | . 28 22 26 27 24 10 20 23 22 5 . 4 6 4 . . . . . . . . . . . . . . Leg 5 | . . 2 2 . 1 7 2 . . 18 23 20 20 15 . . . . . . . . . . . . . . Wheel 1 | . . . . . 4 7 7 7 7 2 . . . . . . . . . . . . . . . . . . Hover 12 | . . . . . . . . . . . . . . 7 34 35 35 35 35 31 31 31 31 30 31 31 27 27 Device 8 | . . . 3 15 10 7 7 7 7 8 5 5 6 6 5 5 5 4 5 8 8 6 9 9 10 10 12 15 Storage 6 | . . . 9 9 7 7 7 7 7 6 6 6 6 6 5 5 5 5 5 5 5 5 5 5 5 5 4 3 Processor 16 | . . . 8 7 11 15 15 15 15 14 20 20 20 19 22 23 23 23 23 23 25 21 21 21 21 21 19 17 Hackware 1 | . . . . . . . . . . . . . . . . . . . . 4 5 9 5 5 5 5 5 3 Protection 6 | . . . 5 12 7 7 7 7 7 6 6 6 6 6 4 5 5 5 5 4 2 3 5 5 3 5 3 1 Energy Gun 1 | . 14 10 7 8 2 7 7 . . . . . . . . . . . . . . . . . . . . . Energy Cannon 3 | . . . 8 6 5 7 3 . 6 3 . . 5 3 4 3 4 3 5 5 5 5 . . . 3 2 2 Ballistic Gun 3 | . 14 12 2 . . . 4 . 6 7 12 12 1 3 . 3 4 3 4 2 . . . . . . . . Ballistic Cannon 2 | . . . . 2 5 . . . . . . . . 1 2 1 . 1 . 1 5 . 8 8 6 6 4 4 Peak Build Rating 165 | 5 4 5 19 40 54 51 54 54 56 82 81 79 78 79 94 96 95 113 115 129 118 123 130 130 128 126 155 165 Average Rating 78 | 3 4 3 14 32 49 48 52 46 54 69 75 77 76 70 85 92 94 101 113 124 114 118 126 125 122 124 141 142 On Entrance 76 | . 4 4 1 19 39 50 51 54 54 54 80 72 77 78 66 89 95 95 113 115 116 112 121 128 127 125 125 155 Avg Prop Armor Cover (%) 11 | 27 29 29 26 . 14 14 17 22 18 11 . 6 6 6 . . . 2 2 1 . 2 . . . . 1 2 Naked Turns 10 | . . 4 . . . . . . . . . . . . . . . . . . . . . . . . . 6 Heaviest Build 132 | 2 2 3 38 54 109 109 110 110 115 132 126 131 114 118 62 61 64 64 58 70 60 66 76 79 79 78 85 86 Greatest Support 132 | 3 3 10 60 76 132 28 28 28 28 84 86 70 70 70 74 74 74 78 78 78 88 78 78 78 78 79 96 96 Greatest Overweight (x) 6 | . . . . 1 3 3 3 3 4 6 1 1 1 6 . . . 1 . . . 1 . 1 1 . . . Average Overweight (x) . | . . . . . 1 3 3 3 3 2 1 1 1 . . . . . . . . . . . . . . . Largest Inventory Capacity 25 | 5 5 5 15 15 25 25 25 25 25 25 25 25 25 25 15 15 15 15 15 15 15 15 15 15 15 15 15 15 Average Capacity 19 | 5 5 5 13 15 24 25 25 25 25 25 25 25 25 22 15 15 15 15 15 15 15 15 15 15 15 15 15 14 Most Carried 25 | 5 5 5 15 15 25 25 25 25 25 25 25 25 25 25 15 15 15 15 15 15 15 15 15 15 15 15 15 15 Average Carried 18 | 2 5 4 11 14 23 25 25 25 24 24 24 24 24 22 14 14 14 14 15 14 14 14 14 14 14 14 14 14 Final Capacity 25 | 5 5 5 15 15 25 25 25 25 25 25 25 25 25 15 15 15 15 15 15 15 15 15 15 15 15 15 15 5 Final Carried 25 | 5 5 2 15 15 25 25 25 25 25 25 25 25 25 15 15 15 15 15 15 15 14 15 15 15 15 15 15 5 Class Distribution -------------------- 28% | Mutant 27% | Skirmisher 18% | Scavenger-Mutant 6% | Commander-Mutant 3% | Derelict-Assassin 3% | Machinist-Scout Dominant Class ---------------- Mutant | -10/Materials Mutant | -10/Mines Scavenger-Mutant | -9/Materials Mutant | -8/Materials Mutant | -7/Factory Skirmisher | -7/Lower Caves Skirmisher | -7/Lower Caves Mutant | -7/Data Miner Skirmisher | -6/Proximity Caves Skirmisher | -6/Factory Skirmisher | -6/Lower Caves Skirmisher | -6/Lower Caves Derelict-Assassin | -6/Zion Derelict-Skirmisher | -5/Proximity Caves Mutant | -5/Factory Mutant | -5/Upper Caves Mutant | -5/Upper Caves Mutant | -5/Warlord Scavenger-Mutant | -4/Proximity Caves Scavenger-Mutant | -4/Factory Scavenger-Mutant | -4/Waste Hacker-Scout | -4/Factory Commander-Mutant | -4/Extension Commander-Mutant | -4/Cetus Commander-Mutant | -4/Archives Commander-Mutant | -4/Hub_04(d) Scavenger-Mutant | -3/Research Machinist-Scout | -3/Quarantine Resources | -11 -10 -10 -9 -8 -7 -7 -7 -7 -6 -6 -6 -6 -6 -5 -5 -5 -5 -5 -4 -4 -4 -4 -4 -4 -4 -4 -3 -3 ----------- Run | Yrd Mat Min Mat Mat Fac Low Low Dat Pro Fac Low Low Zio Pro Fac Upp Upp War Pro Fac Was Fac Ext Cet Arc Hub Res Qua Matter Collected 12005 | 181 77 39 260 656 833 112 39 . 316 1187 513 204 70 325 1280 235 61 1069 74 758 542 415 958 420 128 133 786 334 Remotely 1847 | . . . . . 105 . . . . . . . . . . . . 656 . . 542 100 . . . . 155 289 Salvage Created 17850 | . 41 61 555 1936 1292 53 . . 368 2209 297 126 . 328 2096 388 45 656 144 1304 713 338 1702 196 329 1193 684 796 Parts 837 | . 1 7 39 93 59 1 . . 16 90 16 9 . 22 102 13 2 29 9 86 11 15 81 11 25 41 30 29 Haulers Intercepted 24 | . 1 . 3 5 3 . . . . 4 . . . . 4 1 . . . 1 . . . . . 1 . 1 Recyclers Shooed 10 | . . . . 1 . . . . . 4 . . . . 3 . . . . . . . . . . 1 . 1 Parts Field Recycled . | . . . . . . . . . . . . . . . . . . . . . . . . . . . . . Retrieved Matter . | . . . . . . . . . . . . . . . . . . . . . . . . . . . . . Parts Self-Destructed 98 | . . . . . . 4 2 . 36 . 13 8 . 23 . 4 2 . 6 . . . . . . . . . Prevented 54 | . . . . . . . 1 . 32 . 2 . . 2 . 14 . . 3 . . . . . . . . . Parts Restored . | . . . . . . . . . . . . . . . . . . . . . . . . . . . . . Kills | -11 -10 -10 -9 -8 -7 -7 -7 -7 -6 -6 -6 -6 -6 -5 -5 -5 -5 -5 -4 -4 -4 -4 -4 -4 -4 -4 -3 -3 ------- Run | Yrd Mat Min Mat Mat Fac Low Low Dat Pro Fac Low Low Zio Pro Fac Upp Upp War Pro Fac Was Fac Ext Cet Arc Hub Res Qua Combat Hostiles Destroyed 241 | . . 3 8 38 26 1 . . 6 26 6 4 . 8 19 4 1 17 6 22 3 1 22 2 . 2 9 7 Melee 1 | . . . . . . . . . . . . . . . 1 . . . . . . . . . . . . . Guns 55 | . . 2 3 15 4 . . . 1 15 4 4 . . 1 . . 2 3 1 . . . . . . . . Cannons 125 | . . . 5 13 14 1 . . 2 6 . . . 6 8 1 1 15 2 15 3 1 18 2 . 1 8 3 AOE 42 | . . 1 . 8 5 . . . 3 4 2 . . 1 5 . . . 1 6 . . 2 . . . . 4 Classes Destroyed 25 | . 1 3 3 6 2 . . . 1 1 2 . . . . 1 . 3 . . 1 . 1 . . . . . Worker 20 | . . . . 1 2 . . . . 2 . . . . 4 . . . . . . 1 . . . 7 1 2 Builder 11 | . . . . 1 1 . . . . 1 . . . . 4 . . . . 1 . 1 . . . 1 . 1 Tunneler 6 | . . 1 . . . . . . . . . . . . 2 . . . . 2 . . . . . . 1 . Hauler 24 | . 1 . 3 5 3 . . . . 4 . . . . 4 1 . . . 1 . . . . . 1 . 1 Recycler 20 | . . . . 2 1 . . . . 2 . . . . 4 . . . . 1 . 1 1 . . 5 . 3 Minesweeper 1 | . . . . . . . . . . . 1 . . . . . . . . . . . . . . . . . Mechanic 3 | . . . . . 1 . . . . . . . . . 2 . . . . . . . . . . . . . Operator 13 | . . . . . . . . . . 1 . . . . . . . . . . . 2 . . 9 . . 1 Drone 2 | . . . . . . . . . . . . . . . . 1 . . 1 . . . . . . . . . Watcher 11 | . . . 1 2 . . . . . . . . . . 2 . . . . 1 . . 2 . . . 1 2 Swarmer 50 | . . 2 . 10 3 . . . . . 4 3 . 4 5 . . . 5 9 . . 2 . . . . 3 Saboteur 2 | . . . . . . . . . 2 . . . . . . . . . . . . . . . . . . . Grunt 84 | . . . 5 16 6 . . . 4 16 1 . . 1 5 4 . 6 . 5 . . 8 . . 1 2 4 Brawler 1 | . . . . . . . . . . . . . . . . . . 1 . . . . . . . . . . Protector 2 | . . . . . . . . . . . . . . . . . . 2 . . . . . . . . . . Sentry 28 | . . . 3 8 2 . . . . 3 . . . 1 4 . . . . . . 1 5 . . . 1 . Demolisher 2 | . . 1 . . . . . . . . . . . . . . . 1 . . . . . . . . . . Specialist 4 | . . . . 2 . . . . . 1 . . . . . . . 1 . . . . . . . . . . Hunter 22 | . . . . 1 7 1 . . 1 . . 1 . 1 1 . . . . 1 . . 2 . . 1 5 . Programmer 33 | . . . . . 7 . . . . 6 . . . . 4 . 1 5 . 7 . . 3 . . . . . Heavy 2 | . . . . 1 1 . . . . . . . . . . . . . . . . . . . . . . . Behemoth 5 | . . . . . . . . . . . 1 . . 1 . . . . . . . . 2 . . . 1 . Compactor 3 | . . . . . . . . . . . . . . . . . . . . . 3 . . . . . . . Cetus Guard 2 | . . . . . . . . . . . . . . . . . . . . . . . . 2 . . . . Executioner 1 | . . . . . . . . . . . . . . . . . . 1 . . . . . . . . . . Butcher 4 | . . . . . . . . . . . . . . . . . . . . . . . 1 1 . 2 . . Best Kill Streak 15 | . 1 2 4 4 9 1 . . 6 7 4 2 . 4 6 5 1 4 4 6 2 2 7 2 3 15 4 8 Combat Bots Only 7 | . . 2 4 4 7 1 . . 6 7 4 2 . 4 4 4 1 4 4 5 2 1 6 2 . 2 3 4 Max Kills in Single Turn 12 | . 1 1 1 3 2 1 . . 2 3 2 1 . 1 3 2 1 2 1 3 1 1 2 1 1 12 2 3 Gunslinging 1 | . . . . . . . . . . . 1 . . . . . . . . . . . . . . . . . Exploded 3 | . . 1 . 2 2 . . . 2 2 2 . . 1 2 . . . 1 3 . . 2 . . . . 2 Melee 1 | . . . . . . . . . . . . . . . 1 . . . . . . . . . . . . . Uniques/NPCs Destroyed . | . . . . . . . . . . . . . . . . . . . . . . . . . . . . . Combat | -11 -10 -10 -9 -8 -7 -7 -7 -7 -6 -6 -6 -6 -6 -5 -5 -5 -5 -5 -4 -4 -4 -4 -4 -4 -4 -4 -3 -3 -------- Run | Yrd Mat Min Mat Mat Fac Low Low Dat Pro Fac Low Low Zio Pro Fac Upp Upp War Pro Fac Was Fac Ext Cet Arc Hub Res Qua Hostile Shots Fired 1763 | . 6 34 43 201 267 5 . . 10 301 82 16 . 78 222 3 20 30 23 109 . 8 66 . . . 115 124 Missed 616 | . 2 7 11 49 96 2 . . 3 94 22 3 . 22 93 2 5 14 12 49 . 3 29 . . . 65 33 Hits 1147 | . 4 27 32 152 171 3 . . 7 207 60 13 . 56 129 1 15 16 11 60 . 5 37 . . . 50 91 Projectile 1147 | . 4 27 32 152 171 3 . . 7 207 60 13 . 56 129 1 15 16 11 60 . 5 37 . . . 50 91 AOE 29 | . . 23 . . . . . . . 1 . . . . 1 . . 3 . . . . . . . . . 1 Critical Strikes 43 | . . . . 9 5 . . . 2 4 3 . . 1 8 . 1 . 1 3 . . 3 1 . . 1 1 Part Disruptions 2 | . . . . . . . . . . . . . . . 1 . . 1 . . . . . . . . . . Damage Taken 22769 | . 46 907 402 2351 2211 52 . . 246 2698 1373 158 . 956 2681 19 301 658 158 1345 . 121 789 140 . 90 990 4077 Core 3020 | . 12 195 79 114 192 . . . . 186 162 34 . 105 272 . 58 114 . 229 . 24 30 . . . 41 1173 Absorbed by Shields 869 | . . . . 297 . . . . . 162 . . . 135 . . . 60 . . . . 191 24 . . . . Ignored by Resistances 60 | . . . . . . . . . . . . 60 . . . . . . . . . . . . . . . . Regen/Repaired (Parts) 1615 | . . . . 152 150 . . . 133 . . . . . . . . 193 . 524 . . . . . . 463 . Core Remaining (%) 65 | 100 . 17 80 79 . . . . 72 . . . . 42 . . . . 55 . . . . . . 75 . . Volleys Fired 1207 | . 9 7 27 108 98 4 2 . 14 144 39 13 . 30 156 16 32 91 12 142 65 19 49 14 1 18 53 44 Largest 2 | . 2 2 2 2 2 2 2 . 2 2 2 2 . 2 2 2 2 2 2 2 2 2 2 2 2 2 2 2 Hottest 240 | . 60 70 124 129 129 129 129 . 118 170 90 90 . 105 171 105 105 105 105 146 146 146 112 240 112 146 170 166 Shots Fired 1748 | . 18 11 51 202 177 9 6 . 27 219 66 21 . 35 180 21 34 105 22 177 64 20 94 26 3 19 84 57 Gun 514 | . 18 10 27 108 45 5 4 . 12 128 59 16 . 5 13 4 2 27 10 14 . . . 1 . . 6 . Cannon 1162 | . . . 24 84 120 4 2 . 11 84 5 5 . 27 151 13 32 78 10 157 64 20 94 25 3 19 77 53 Launcher 70 | . . 1 . 10 12 . . . 4 7 2 . . 3 15 4 . . 2 5 . . . . . . 1 4 Special 2 | . . . . . . . . . . . . . . . 1 . . . . 1 . . . . . . . . Kinetic 845 | . 9 7 12 16 60 . 1 . 12 124 59 16 . 16 80 10 7 86 10 56 56 3 94 25 3 8 51 24 Thermal 809 | . 9 3 39 176 105 9 5 . 11 88 5 5 . 16 63 7 27 19 10 115 8 17 . 1 . 11 32 28 Explosive 22 | . . 1 . 10 6 . . . . . . . . . . . . . . . . . . . . . 1 4 Electromagnetic 70 | . . . . . 6 . . . 4 7 2 . . 3 36 4 . . 2 5 . . . . . . . 1 Robot Hit Streak 22 | . 5 3 11 13 13 12 4 . 4 19 9 12 . 12 12 4 6 11 18 12 14 2 14 11 1 3 22 8 Robot Miss Streak 8 | . 3 6 5 3 6 1 2 . 3 3 2 2 . 1 5 . 1 6 8 3 2 3 8 1 1 . 3 2 Penetration Max 2 | . . . . 1 . . . . 1 . . . . . 1 . . 1 . 2 1 . 1 1 . 1 1 2 Secondary Targets 2 | . . . . . . . . . . . 1 1 . . . . . . . . . . . . . . . . Max Gunslinging Chain 1 | . . . . . . . . . . . 1 1 . . . . . . . . . . . . . . . . Shots Hit Robots 1018 | . 12 3 31 139 117 7 2 . 15 138 41 11 . 18 100 4 6 67 9 81 45 8 64 16 17 3 47 17 Core Hits 530 | . 2 4 14 77 67 2 1 . 14 79 13 6 . 10 50 9 1 20 6 37 5 5 29 6 7 23 19 24 Critical Kills 56 | . . . . . 3 . . . . . . . . . . . . . . 6 3 1 21 3 . 3 8 8 Critical Parts Destroyed 72 | . . . . . 1 . . . . 1 . 2 . . . . . . . 16 1 1 22 8 2 1 11 6 Critical Strikes 202 | . . 1 1 6 14 . . . . 1 . 2 . 4 6 . 1 4 . 22 30 4 46 13 8 4 21 14 Burn 10 | . . 1 1 6 2 . . . . . . . . . . . . . . . . . . . . . . . Meltdown 3 | . . . . . 3 . . . . . . . . . . . . . . . . . . . . . . . Destroy 156 | . . . . . . . . . . 1 . 2 . . . . . . . 22 30 2 46 13 3 4 19 14 Blast 19 | . . . . . 8 . . . . . . . . 4 2 . 1 4 . . . . . . . . . . Corrupt 1 | . . . . . . . . . . . . . . . 1 . . . . . . . . . . . . . Smash 1 | . . . . . 1 . . . . . . . . . . . . . . . . . . . . . . . Impale 12 | . . . . . . . . . . . . . . . 3 . . . . . . 2 . . 5 . 2 . Melee Attacks 102 | . . . . 6 3 . . . 2 13 1 . 1 6 13 . . . . . . 18 10 1 21 . 4 3 Impact 9 | . . . . 6 3 . . . . . . . . . . . . . . . . . . . . . . . Slashing 17 | . . . . . . . . . 2 13 1 . 1 . . . . . . . . . . . . . . . Piercing 69 | . . . . . . . . . . . . . . 6 13 . . . . . . 17 4 1 21 . 4 3 Entropic 1 | . . . . . . . . . . . . . . . . . . . . . . 1 . . . . . . Sneak Attacks 32 | . . . . 1 1 . . . . 2 1 . . . 4 . . . . . . 6 6 . 11 . . . Combat Hostiles . | . . . . . . . . . . . . . . . . . . . . . . . . . . . . . Follow-up Attacks . | . . . . . . . . . . . . . . . . . . . . . . . . . . . . . Damage Inflicted 37992 | . 118 98 586 3751 3681 141 40 . 683 4442 1165 223 . 740 5219 612 355 4042 406 3034 996 448 1395 368 1145 1760 1033 1511 Guns 7357 | . 118 52 253 1606 699 80 20 . 147 2029 983 223 . 72 218 23 59 324 90 210 . . . . . . 151 . Cannons 19647 | . . . 333 1167 2091 61 20 . 263 1159 . . . 470 3428 185 296 3718 172 2181 996 35 1168 368 99 155 793 489 Explosions 8396 | . . 46 . 871 779 . . . 273 960 108 . . 167 1147 404 . . 144 643 . . 227 . . 1605 . 1022 Melee 2539 | . . . . 92 112 . . . . 256 74 . . 31 426 . . . . . . 413 . . 1046 . 89 . Ramming 53 | . . . . 15 . . . . . 38 . . . . . . . . . . . . . . . . . . Kinetic 15864 | . 30 16 131 253 1245 . . . 147 1861 983 223 . 406 1875 107 312 3630 90 913 962 35 1168 368 99 81 563 366 Thermal 11143 | . 88 36 455 2520 1545 141 40 . 263 1327 . . . 136 1473 101 43 412 172 1552 34 . 227 . . 74 381 123 Explosive 2865 | . . 46 . 871 539 . . . . 387 . . . . . . . . . . . . . . . . . 1022 Electromagnetic 5528 | . . . . . 240 . . . 273 573 108 . . 167 1445 404 . . 144 569 . . . . . 1605 . . Impact 204 | . . . . 92 112 . . . . . . . . . . . . . . . . . . . . . . . Slashing 330 | . . . . . . . . . . 256 74 . . . . . . . . . . . . . . . . . Piercing 2005 | . . . . . . . . . . . . . . 31 426 . . . . . . 413 . . 1046 . 89 . Highest Corruption 43 | . . . . 1 7 7 7 7 7 8 8 8 8 . 5 5 7 7 4 3 37 37 38 38 38 16 . 43 Average Corruption 10 | . . . . 1 4 7 7 7 7 4 8 8 8 . 3 5 5 7 4 2 16 37 37 38 24 13 . 14 Corruption Purged 27 | . . . . . . . . . . . . . . . 2 . . . . . . . . . 25 . . . Corruption Blocked . | . . . . . . . . . . . . . . . . . . . . . . . . . . . . . Effects 474 | . . . . 14 18 18 17 5 30 57 43 34 2 . 17 13 7 1 . 9 25 36 59 26 24 11 . 8 Message Errors 115 | . . . . 4 5 3 6 2 6 15 14 5 1 . 5 2 4 . . 1 6 8 8 8 6 3 . 3 Matter Fused 98 | . . . . 2 4 8 2 2 10 15 5 7 1 . 5 1 1 . . 5 3 9 9 3 2 2 . 2 Heat Flow Errors 58 | . . . . . 1 2 1 1 3 5 8 9 . . 1 1 1 . . . 2 5 9 2 6 . . 1 Energy Discharges 62 | . . . . 1 4 1 3 . 1 9 8 5 . . 3 1 . . . 1 3 6 8 5 3 . . . Parts Rejected 7 | . . . . . . . . . . . 2 1 . . . . . . . . . . 4 . . . . . Parts Fused 5 | . . . . 1 . . . . 1 1 . . . . . . . . . . . 1 . . 1 . . . Data Loss (minor) 46 | . . . . 4 1 1 1 . 4 3 3 5 . . 2 5 1 . . 1 1 2 5 4 2 1 . . Data Loss (major) 19 | . . . . 1 1 1 2 . . 3 . 2 . . . . . 1 . 1 . 1 2 . 3 1 . . Misfires 23 | . . . . . . 1 2 . 3 2 3 . . . . 2 . . . . 2 1 5 1 1 . . . Alerts 8 | . . . . 1 . 1 . . 2 1 . . . . 1 1 . . . . . . 1 . . . . . Misdirections 15 | . . . . . . . . . . . . . . . . . . . . . 4 1 3 1 . 4 . 2 Weapon Failures 18 | . . . . . 2 . . . . 3 . . . . . . . . . . 4 2 5 2 . . . . Overload Shots 1 | . . . . . . . . . . . . . . . . . . . . . . . . 1 . . . . Effects 1 | . . . . . . . . . . . . . . . . . . . . . . . . 1 . . . . Heat Surge 1 | . . . . . . . . . . . . . . . . . . . . . . . . 1 . . . . Overflow Damage 2263 | . . . . 61 157 . . . . 132 34 . . 31 428 . 39 363 32 106 . 80 . . 450 129 7 214 Projectiles 946 | . . . . 8 67 . . . . 30 . . . 31 270 . 39 363 32 106 . . . . . . . . Explosions 406 | . . . . 21 10 . . . . . . . . . 32 . . . . . . . . . . 129 . 214 Melee 911 | . . . . 32 80 . . . . 102 34 . . . 126 . . . . . . 80 . . 450 . 7 . Knockbacks 43 | . . . . 3 8 . . . . . . . . . 6 . 2 7 . . . . 9 2 . 1 4 1 Impact . | . . . . . . . . . . . . . . . . . . . . . . . . . . . . . Kinetic 43 | . . . . 3 8 . . . . . . . . . 6 . 2 7 . . . . 9 2 . 1 4 1 Secondary . | . . . . . . . . . . . . . . . . . . . . . . . . . . . . . Self-Inflicted Damage 645 | . . . . 109 . . . . 77 100 3 . . 13 . . . . . 125 . . . . . 91 . 127 Shots 16 | . . . . 3 . . . . 2 3 1 . . 1 . . . . . 3 . . . . . 1 . 2 Rammed 3 | . . . . 3 . . . . . . . . . . . . . . . . . . . . . . . . Targets Rammed 9 | . . . . 3 . . . . . 6 . . . . . . . . . . . . . . . . . . Kicked 6 | . . . . . . . . . . 6 . . . . . . . . . . . . . . . . . . Crushed . | . . . . . . . . . . . . . . . . . . . . . . . . . . . . . Highest Temperature 406 | . 20 20 266 261 229 216 167 143 261 336 344 210 . 392 276 205 378 311 346 380 280 380 283 284 295 292 406 112 Average Temperature 90 | . 8 12 94 62 78 88 70 73 87 94 105 75 . 93 43 73 114 110 135 91 150 149 92 69 95 85 97 32 Received Heat Transfer 4169 | . 24 . 195 860 231 . . . 42 817 500 . . 87 285 9 . . . 93 . 27 126 9 . . 531 333 Effects 31 | . . . . 3 3 . . . 2 . . . . . . . 1 1 4 5 1 9 1 . . . 1 . Shutdowns 5 | . . . . . . . . . . . . . . . . . . . 1 1 . 2 . . . . 1 . Energy Bleed 12 | . . . . 1 . . . . . . . . . . . . 1 1 3 2 1 2 1 . . . . . Interference 14 | . . . . 2 3 . . . 2 . . . . . . . . . . 2 . 5 . . . . . . Siege Activations . | . . . . . . . . . . . . . . . . . . . . . . . . . . . . . Martial Activations . | . . . . . . . . . . . . . . . . . . . . . . . . . . . . . Shielding Activations . | . . . . . . . . . . . . . . . . . . . . . . . . . . . . . Robots Disrupted . | . . . . . . . . . . . . . . . . . . . . . . . . . . . . . Combat Hostiles . | . . . . . . . . . . . . . . . . . . . . . . . . . . . . . Robots Corrupted 11 | . . . . . 2 . . . . 1 . . . . 4 3 . . . . . . . . . 1 . . Combat Hostiles 9 | . . . . . . . . . . 1 . . . . 4 3 . . . . . . . . . 1 . . Parts Fried 36 | . . . . 1 7 . . . . 2 . . . . 14 2 . . . . . . . . . 10 . . Impact Corruptions 5 | . . . . 1 4 . . . . . . . . . . . . . . . . . . . . . . . Robots Melted 6 | . . . . 3 3 . . . . . . . . . . . . . . . . . . . . . . . Combat Hostiles 5 | . . . . 2 3 . . . . . . . . . . . . . . . . . . . . . . . Parts Melted 33 | . . . 1 18 8 . . . . 1 . . . 1 3 . . . . . . . . . . . 1 . Heat Transferred 15741 | . 200 185 925 5328 2701 259 74 . 239 1670 . . . 148 1419 111 37 371 185 1530 37 . 100 . . 37 185 . Parts Sabotaged . | . . . . . . . . . . . . . . . . . . . . . . . . . . . . . Parts Stolen . | . . . . . . . . . . . . . . . . . . . . . . . . . . . . . Parts Stripped . | . . . . . . . . . . . . . . . . . . . . . . . . . . . . . Power Chain Reactions 4 | . . . . . . . . . 1 . . . . . 1 . . . . 2 . . . . . . . . Alert | -11 -10 -10 -9 -8 -7 -7 -7 -7 -6 -6 -6 -6 -6 -5 -5 -5 -5 -5 -4 -4 -4 -4 -4 -4 -4 -4 -3 -3 ------- Run | Yrd Mat Min Mat Mat Fac Low Low Dat Pro Fac Low Low Zio Pro Fac Upp Upp War Pro Fac Was Fac Ext Cet Arc Hub Res Qua Maximum Alert Level 4 | . . . . 1 2 . . . . 2 . . . . 3 . . . . 3 1 . 2 2 1 4 3 2 Low Security (%) 47 | 100 100 100 100 77 60 . . . . 35 . . . . 33 . . . . 15 33 100 46 . 26 49 . 14 Level 1 29 | . . . . 22 32 . . . . 48 . . . . 11 . . . . 52 66 . 27 39 73 3 . 68 Level 2 19 | . . . . . 7 . . . . 16 . . . . 30 . . . . 27 . . 25 60 . . 94 17 Level 3 3 | . . . . . . . . . . . . . . . 24 . . . . 4 . . . . . 22 5 . Level 4 . | . . . . . . . . . . . . . . . . . . . . . . . . . . 25 . . Level 5 . | . . . . . . . . . . . . . . . . . . . . . . . . . . . . . High Security . | . . . . . . . . . . . . . . . . . . . . . . . . . . . . . Max Security . | . . . . . . . . . . . . . . . . . . . . . . . . . . . . . Peak Influence 1248 | . 65 42 90 324 415 . . . . 433 . . . . 743 . . . . 886 310 152 666 470 284 1248 708 450 Initial 654 | . . 25 13 4 137 . . . . . . . . . 51 . . . . 187 310 95 13 352 164 56 654 358 Average 253 | . 5 16 23 132 202 . . . . 203 . . . . 389 . . . . 354 227 87 271 408 227 581 648 287 Influence Increases 12699 | . 89 107 307 1255 932 30 . . 259 948 145 130 . 309 1377 100 30 537 220 1497 6 195 1236 378 250 1312 508 542 Destroy 0b10 Robot/C 5460 | . . 60 160 760 520 20 . . 180 520 120 80 . 220 380 80 20 400 100 440 . 20 660 160 80 160 200 120 Destroy 0b10 Robot/NC 580 | . 5 5 20 55 40 . . . . 50 5 . . . 110 5 . 10 5 30 . 25 25 10 45 70 15 50 Destroy Leader 1030 | . 2 . 58 204 136 10 . . . 138 20 20 . 40 82 . 10 . 10 84 . 10 86 . . 52 52 16 Allied During Kill 988 | . . 2 . . . . . . 19 . . . . 19 . . . 37 . . . . 340 170 125 276 . . Trap Triggered on 0b10 10 | . . 10 . . . . . . . . . . . . . . . . . . . . . . . . . . Successful Hack 472 | . 7 . 24 39 30 . . . . 2 . . . . 76 . . . . 52 . 32 38 . . . 97 75 Select Force Hacks 220 | . 30 . . 30 . . . . 30 . . . . . 30 . . . . . . . . . . 100 . . Disable Machine 735 | . . 15 15 75 45 . . . . 120 . . . . 60 . . . . 45 . 60 15 15 . 165 15 90 Anti-Garrison Action 150 | . . . . . . . . . . . . . . . . . . . . 150 . . . . . . . . Destroy Structure 1209 | . . . . 62 71 . . . . 58 . . . . 144 . . . . 156 6 48 72 8 . 384 54 146 Advance Influence 150 | . . . . . . . . . . . . . . . . . . . . 150 . . . . . . . . Partial Spotted 180 | . . . . . . . . . . . . . . . 90 . . . . . . . . . . 45 45 . Lose Combat Pursuer 1515 | . 45 15 30 30 90 . . . 30 60 . 30 . 30 405 15 . 90 105 390 . . . 15 . 60 30 45 Influence Decreases 12501 | . 24 137 330 963 827 432 7 . 259 545 548 130 . 226 740 437 234 501 375 671 756 303 634 596 502 224 1118 982 Entered New Map 3467 | . . 40 22 8 167 152 2 . . . 150 . . . 32 267 74 179 215 23 576 41 15 278 248 104 594 280 Time Decay 7052 | . 24 72 283 568 610 270 5 . 189 485 368 130 . 226 568 160 160 242 160 478 180 262 394 198 214 70 434 302 Search Patrol Dispatched 100 | . . . . . . . . . . . . . . . . . . . . 100 . . . . . . . . Lost Part 775 | . . 5 . 80 50 10 . . 10 60 30 . . . 130 . . 20 . 50 . . 10 20 . 10 40 250 Lost Ally 477 | . . 20 . 7 . . . . 60 . . . . . 10 10 . 60 . 20 . . 60 100 40 40 50 . Purge Threat 630 | . . . 25 300 . . . . . . . . . . . . . . . . . . 155 . . . . 150 Squads Dispatched 82 | . 2 . 1 5 8 . . . 1 13 . . . . 12 . . . . 18 . 3 2 . . 3 9 5 Investigation 28 | . 2 . 1 1 2 . . . 1 3 . . . . 3 . . . . 6 . 2 1 . . 3 2 1 Extermination 20 | . . . . . 4 . . . . 5 . . . . 5 . . . . 3 . 1 . . . . . 2 Reinforcement 31 | . . . . 4 2 . . . . 5 . . . . 4 . . . . 6 . . 1 . . . 7 2 Assault 3 | . . . . . . . . . . . . . . . . . . . . 3 . . . . . . . . Garrison . | . . . . . . . . . . . . . . . . . . . . . . . . . . . . . Intercept . | . . . . . . . . . . . . . . . . . . . . . . . . . . . . . Searches Triggered 1 | . . . . . . . . . . . . . . . . . . . . 1 . . . . . . . . Unchained Authorized 1 | . . . . . . . . . . . . . . . . . . . . . . . . . . . . 1 Data Miner Redirects 4 | . . . . . . . . . . 2 . . . . . . . . . 1 . . . . . . . 1 Construction Impeded 8 | . . . . 1 . . . . . 1 . . . . 3 . . . . 3 . . . . . . . . Haulers Reinforced 8 | . . . . . 1 . . . . 2 . . . . 1 . . . . 2 . . . . . . 1 1 Active Scanning Responses . | . . . . . . . . . . . . . . . . . . . . . . . . . . . . . Cargo Convoy Interrupts 1 | . . . . . 1 . . . . . . . . . . . . . . . . . . . . . . . Stealth | -11 -10 -10 -9 -8 -7 -7 -7 -7 -6 -6 -6 -6 -6 -5 -5 -5 -5 -5 -4 -4 -4 -4 -4 -4 -4 -4 -3 -3 --------- Run | Yrd Mat Min Mat Mat Fac Low Low Dat Pro Fac Low Low Zio Pro Fac Upp Upp War Pro Fac Was Fac Ext Cet Arc Hub Res Qua Distress Signals 36 | . . . 1 4 3 . . . . 1 . . . . 4 . . . . 6 . . 4 2 . 3 7 1 Communications Jammed 8 | . . . . . . . . . . . . . . . . . . . . . . . . . . . 8 . Distress Signals 1 | . . . . . . . . . . . . . . . . . . . . . . . . . . . 1 . Times Spotted 553 | . 10 7 16 53 45 1 . . 23 38 6 5 . 13 58 6 4 74 11 58 10 3 33 11 10 6 27 25 Peak Tracking Total 13 | . 7 4 5 5 9 1 . . 10 6 4 3 . 5 7 5 3 13 5 11 5 2 5 5 2 5 3 9 Tactical Retreats 62 | . 1 1 2 2 4 . . . 1 4 . 2 . 2 17 1 . 4 2 8 3 . . 1 . 1 2 4 Traps | -11 -10 -10 -9 -8 -7 -7 -7 -7 -6 -6 -6 -6 -6 -5 -5 -5 -5 -5 -4 -4 -4 -4 -4 -4 -4 -4 -3 -3 ------- Run | Yrd Mat Min Mat Mat Fac Low Low Dat Pro Fac Low Low Zio Pro Fac Upp Upp War Pro Fac Was Fac Ext Cet Arc Hub Res Qua Traps Triggered 18 | . 1 . 1 1 . . . . . 4 . . . . 3 . . . . 4 . 1 2 . . 1 . . Indirectly 7 | . . . . . . . . . . 2 . . . . 2 . . . . 2 . . . . . 1 . . Trap Hack Attempts . | . . . . . . . . . . . . . . . . . . . . . . . . . . . . . Triggered . | . . . . . . . . . . . . . . . . . . . . . . . . . . . . . Disarmed . | . . . . . . . . . . . . . . . . . . . . . . . . . . . . . Reprogrammed . | . . . . . . . . . . . . . . . . . . . . . . . . . . . . . Reused 1 | . . 1 . . . . . . . . . . . . . . . . . . . . . . . . . . Traps Extracted . | . . . . . . . . . . . . . . . . . . . . . . . . . . . . . Installed 1 | . . 1 . . . . . . . . . . . . . . . . . . . . . . . . . . Triggered 1 | . . 1 . . . . . . . . . . . . . . . . . . . . . . . . . . Most Traps Carried 5 | . . 1 . . . . . . . . 5 5 5 5 5 5 5 5 5 5 5 5 5 5 5 5 5 5 Machines | -11 -10 -10 -9 -8 -7 -7 -7 -7 -6 -6 -6 -6 -6 -5 -5 -5 -5 -5 -4 -4 -4 -4 -4 -4 -4 -4 -3 -3 ---------- Run | Yrd Mat Min Mat Mat Fac Low Low Dat Pro Fac Low Low Zio Pro Fac Upp Upp War Pro Fac Was Fac Ext Cet Arc Hub Res Qua Machines Disabled 54 | . . 1 1 5 3 . . . . 8 . . . . 4 . . 2 . 4 . 4 2 1 . 11 1 7 Max in Single Turn 11 | . . . 1 1 2 . . . . 2 . . . . 1 . . 1 . 1 . 1 1 1 . 11 1 1 Garrison Access 4 | . . . . . . . . . . . . . . . 1 . . . . 2 . . . . . . 1 . Network Hub 4 | . . . . . . . . . . . . . . . . . . . . . . . . . . 4 . . Energy Cycler 1 | . . . . . . . . . . . . . . . . . . . . . . . 1 . . . . . Machines Repaired . | . . . . . . . . . . . . . . . . . . . . . . . . . . . . . Machines Dismantled . | . . . . . . . . . . . . . . . . . . . . . . . . . . . . . Machines Sabotaged 2 | . . . . . . . . . . . . . . . . . . . . . . . . . . 2 . . Overloaded Fab Kills . | . . . . . . . . . . . . . . . . . . . . . . . . . . . . . Hacking | -11 -10 -10 -9 -8 -7 -7 -7 -7 -6 -6 -6 -6 -6 -5 -5 -5 -5 -5 -4 -4 -4 -4 -4 -4 -4 -4 -3 -3 --------- Run | Yrd Mat Min Mat Mat Fac Low Low Dat Pro Fac Low Low Zio Pro Fac Upp Upp War Pro Fac Was Fac Ext Cet Arc Hub Res Qua Machines Accessed 123 | . 5 . 7 15 8 1 . 4 2 12 . 1 . . 16 . . 2 . 15 . 9 4 1 . 3 9 9 Terminals 71 | . 4 . 7 11 4 1 . . . 7 . . . . 6 . . . . 7 . 6 4 1 . 3 3 7 Fabricators 13 | . . . . . 1 . . . . 4 . . . . 2 . . . . 3 . 1 . . . . 2 . Repair Stations 8 | . . . . 1 1 . . . 1 . . . . . 1 . . . . 2 . . . . . . 2 . Recycling Units 9 | . 1 . . 1 2 . . . 1 . . . . . 3 . . . . 1 . . . . . . . . Scanalyzers 11 | . . . . 2 . . . . . 1 . . . . 3 . . . . . . 2 . . . . 1 2 Garrison Access 4 | . . . . . . . . . . . . . . . 1 . . . . 2 . . . . . . 1 . Total Hacks 362 | . 11 . 27 50 14 1 . 21 3 33 . 1 . . 39 . . 2 . 37 . 32 7 3 . 4 41 36 Successful 182 | . 3 . 13 22 6 1 . 21 3 13 . 1 . . 20 . . 2 . 16 . 17 4 . . 3 21 16 Failed 178 | . 8 . 14 28 8 . . . . 20 . . . . 18 . . . . 21 . 15 3 3 . 1 20 19 Catastrophic 37 | . 2 . . 2 3 . . . . 5 . . . . 6 . . . . 5 . 4 1 . . . 6 3 Database Lockouts 2 | . . . . . . . . . . . . . . . 1 . . . . . . . . . . . . 1 Manual 138 | . 8 . 19 18 4 . . . 1 13 . . . . 14 . . 1 . 10 . 13 4 1 . 4 10 18 Terminals 190 | . 10 . 27 37 6 1 . . . 15 . . . . 13 . . . . 14 . 11 7 3 . 4 14 28 Fabricators 52 | . . . . . 3 . . . . 13 . . . . 8 . . . . 9 . 10 . . . . 9 . Repair Stations 30 | . . . . 4 2 . . . 2 . . . . . 3 . . . . 8 . . . . . . 11 . Recycling Units 12 | . 1 . . 1 3 . . . 1 . . . . . 5 . . . . 1 . . . . . . . . Scanalyzers 45 | . . . . 8 . . . . . 5 . . . . 9 . . . . . . 11 . . . . 4 8 Garrison Access 9 | . . . . . . . . . . . . . . . 1 . . . . 5 . . . . . . 3 . Terminal Hacks 70 | . 2 . 9 11 1 1 . 21 . . . 1 . . 1 . . 2 . 4 . 1 3 . . . 2 11 Record 7 | . . . . . . 1 . 4 . . . . . . . . . . . . . . . . . . . 2 Part Schematic 12 | . 1 . 1 . . . . 9 . . . . . . . . . . . . . . . . . . . 1 Robot Schematic 5 | . . . . . . . . 5 . . . . . . . . . . . . . . . . . . . . Robot Analysis 3 | . . . 2 1 . . . . . . . . . . . . . . . . . . . . . . . . Prototype ID Bank 10 | . 1 . 1 2 1 . . 3 . . . . . . . . . . . 1 . . 1 . . . . . Open Door 3 | . . . . . . . . . . . . 1 . . . . . 2 . . . . . . . . . . Level Access Points 1 | . . . . . . . . . . . . . . . . . . . . . . . . . . . 1 . Branch Access Points 3 | . . . . . . . . . . . . . . . 1 . . . . 1 . 1 . . . . . . Emergency Access Points 1 | . . . 1 . . . . . . . . . . . . . . . . . . . . . . . . . Terminal Index 2 | . . . . . . . . . . . . . . . . . . . . . . . . . . . 1 1 Alert Level 2 | . . . 1 . . . . . . . . . . . . . . . . . . . . . . . . 1 Unreport Threat 6 | . . . 1 2 . . . . . . . . . . . . . . . . . . 2 . . . . 1 Locate Traps 2 | . . . . . . . . . . . . . . . . . . . . 1 . . . . . . . 1 Security Status 1 | . . . . . . . . . . . . . . . . . . . . . . . . . . . . 1 Patrol Status 1 | . . . . . . . . . . . . . . . . . . . . 1 . . . . . . . . Transport Status 3 | . . . . 3 . . . . . . . . . . . . . . . . . . . . . . . . Hauler Manifests 4 | . . . 1 2 . . . . . . . . . . . . . . . . . . . . . . . 1 Zone Layout 4 | . . . 1 1 . . . . . . . . . . . . . . . . . . . . . . . 2 Fabricator Hacks 30 | . . . . . 2 . . . . 7 . . . . 6 . . . . 4 . 5 . . . . 6 . Network Status 4 | . . . . . . . . . . 1 . . . . 1 . . . . 1 . . . . . . 1 . Load Schematic 18 | . . . . . 2 . . . . 4 . . . . 3 . . . . 3 . 3 . . . . 3 . Build 8 | . . . . . . . . . . 2 . . . . 2 . . . . . . 2 . . . . 2 . Repair Station Hacks 17 | . . . . 2 2 . . . 2 . . . . . 1 . . . . 3 . . . . . . 7 . Scan Component 10 | . . . . 1 1 . . . 1 . . . . . 1 . . . . 2 . . . . . . 4 . Repair 7 | . . . . 1 1 . . . 1 . . . . . . . . . . 1 . . . . . . 3 . Recycling Unit Hacks 2 | . . . . . 1 . . . . . . . . . 1 . . . . . . . . . . . . . Report Inventory 1 | . . . . . 1 . . . . . . . . . . . . . . . . . . . . . . . Retrieve Components 1 | . . . . . . . . . . . . . . . 1 . . . . . . . . . . . . . Scanalyzer 26 | . . . . 7 . . . . . 3 . . . . 4 . . . . . . 9 . . . . 2 1 Insert Component 9 | . . . . 2 . . . . . 1 . . . . 2 . . . . . . 3 . . . . 1 . Analyze 10 | . . . . 2 . . . . . 1 . . . . 1 . . . . . . 5 . . . . 1 . Retrieve Study 7 | . . . . 3 . . . . . 1 . . . . 1 . . . . . . 1 . . . . . 1 Garrison Access Hacks 3 | . . . . . . . . . . . . . . . 1 . . . . 1 . . . . . . 1 . Seal Access 3 | . . . . . . . . . . . . . . . 1 . . . . 1 . . . . . . 1 . Unauthorized Hacks 34 | . 1 . 4 2 . . . . 1 3 . . . . 6 . . . . 4 . 2 1 . . 3 3 4 Terminals 16 | . . . 4 1 . . . . . . . . . . 3 . . . . 1 . . 1 . . 3 1 2 Assimilate 4 | . . . 2 . . . . . . . . . . . 1 . . . . . . . . . . . 1 . Botnet 8 | . . . 2 1 . . . . . . . . . . 1 . . . . 1 . . 1 . . . . 2 Operators 1 | . . . . . . . . . . . . . . . 1 . . . . . . . . . . . . . Sabotage 3 | . . . . . . . . . . . . . . . . . . . . . . . . . . 3 . . Fabricators 10 | . . . . . . . . . . 3 . . . . 1 . . . . 2 . 2 . . . . 2 . Prioritize 2 | . . . . . . . . . . . . . . . . . . . . . . 1 . . . . 1 . Haulers 1 | . . . . . . . . . . . . . . . . . . . . . . 1 . . . . . . Recompile 7 | . . . . . . . . . . 3 . . . . 1 . . . . 2 . . . . . . 1 . Repair Stations 1 | . . . . . . . . . . . . . . . . . . . . 1 . . . . . . . . Patch 1 | . . . . . . . . . . . . . . . . . . . . 1 . . . . . . . . Recycling Units 4 | . 1 . . 1 . . . . 1 . . . . . 1 . . . . . . . . . . . . . Recyclers 1 | . . . . . . . . . . . . . . . 1 . . . . . . . . . . . . . Tunnel 3 | . 1 . . 1 . . . . 1 . . . . . . . . . . . . . . . . . . . Scanalyzers 3 | . . . . . . . . . . . . . . . 1 . . . . . . . . . . . . 2 Researchers 2 | . . . . . . . . . . . . . . . . . . . . . . . . . . . . 2 Extract 1 | . . . . . . . . . . . . . . . 1 . . . . . . . . . . . . . Garrison Access . | . . . . . . . . . . . . . . . . . . . . . . . . . . . . . Data Cores Recovered . | . . . . . . . . . . . . . . . . . . . . . . . . . . . . . Used . | . . . . . . . . . . . . . . . . . . . . . . . . . . . . . Hacking Detections 98 | . 4 . 7 13 7 1 . . 1 11 . . . . 14 . . . . 14 . 9 3 2 . . 6 6 Full Trace Events 10 | . . . . . 2 . . . . . . . . . 1 . . . . 3 . 2 1 . . . 1 . Feedback Events 1 | . . . . . . . . . . . . . . . . . . . . 1 . . . . . . . . Corruption 1 | . . . . . . . . . . . . . . . . . . . . 1 . . . . . . . . Feedback Blocked . | . . . . . . . . . . . . . . . . . . . . . . . . . . . . . Robot Schematics Acquired 6 | . . . . . . . . 5 . . . . 1 . . . . . . . . . . . . . . . Robots Built . | . . . . . . . . . . . . . . . . . . . . . . . . . . . . . Authchips . | . . . . . . . . . . . . . . . . . . . . . . . . . . . . . Time . | . . . . . . . . . . . . . . . . . . . . . . . . . . . . . Total Robot Build Rating . | . . . . . . . . . . . . . . . . . . . . . . . . . . . . . Part Schematics Acquired 39 | . 1 . 1 2 . . . 9 . 1 . . 16 . 5 . . . . . . 2 . . . . 1 1 Parts Built 12 | . . . . . . . . . . 2 . . . . 2 . . . . . . 4 . . . . 4 . Authchips 7 | . . . . . . . . . . 2 . . . . 2 . . . . . . 2 . . . . 1 . Time 398 | . . . . . . . . . . 152 . . . . 85 . . . . . . 92 . . . . 69 . Total Part Build Rating 89 | . . . . . . . . . . 10 . . . . 11 . . . . . . 32 . . . . 36 . Part Studies Acquired 7 | . . . . 3 . . . . . 1 . . . . 1 . . . . . . 1 . . . . . 1 Parts Repaired 7 | . . . . 1 1 . . . 1 . . . . . . . . . . 1 . . . . . . 3 . Time 273 | . . . . 32 44 . . . 22 . . . . . . . . . . 54 . . . . . . 121 . Parts Recycled . | . . . . . . . . . . . . . . . . . . . . . . . . . . . . . Recycled Matter . | . . . . . . . . . . . . . . . . . . . . . . . . . . . . . Retrieved Matter . | . . . . . . . . . . . . . . . . . . . . . . . . . . . . . Retrieved Components 1 | . . . . . . . . . . . . . . . 1 . . . . . . . . . . . . . Parts Scanalyzed 7 | . . . . 2 . . . . . 1 . . . . 1 . . . . . . 2 . . . . 1 . Part Schematics Acquired 7 | . . . . 2 . . . . . 1 . . . . 1 . . . . . . 2 . . . . 1 . Parts Damaged . | . . . . . . . . . . . . . . . . . . . . . . . . . . . . . Bothacking | -11 -10 -10 -9 -8 -7 -7 -7 -7 -6 -6 -6 -6 -6 -5 -5 -5 -5 -5 -4 -4 -4 -4 -4 -4 -4 -4 -3 -3 ------------ Run | Yrd Mat Min Mat Mat Fac Low Low Dat Pro Fac Low Low Zio Pro Fac Upp Upp War Pro Fac Was Fac Ext Cet Arc Hub Res Qua Used RIF Installer . | . . . . . . . . . . . . . . . . . . . . . . . . . . . . . Robots Hacked 1 | . . . . . . . . . . . . . . . . . . . . 1 . . . . . . . . Non-combat 1 | . . . . . . . . . . . . . . . . . . . . 1 . . . . . . . . Combat . | . . . . . . . . . . . . . . . . . . . . . . . . . . . . . Robot Hacks Applied 1 | . . . . . . . . . . . . . . . . . . . . 1 . . . . . . . . find_chute 1 | . . . . . . . . . . . . . . . . . . . . 1 . . . . . . . . Relay Couplers Released 7 | . . . . . . . . . . . . . . . 4 . . . . 3 . . . . . . . . Machine Destruction 3 | . . . . . . . . . . . . . . . . . . . . 3 . . . . . . . . Programmers 4 | . . . . . . . . . . . . . . . 4 . . . . . . . . . . . . . Fabnet Peak Effective % . | . . . . . . . . . . . . . . . . . . . . . . . . . . . . . Robots Rewired 29 | . . . . . . . . . 5 . . . . . . . . 5 . 1 . . 18 . . . . . Allies Hacked . | . . . . . . . . . . . . . . . . . . . . . . . . . . . . . Hacks Repelled . | . . . . . . . . . . . . . . . . . . . . . . . . . . . . . Allies | -11 -10 -10 -9 -8 -7 -7 -7 -7 -6 -6 -6 -6 -6 -5 -5 -5 -5 -5 -4 -4 -4 -4 -4 -4 -4 -4 -3 -3 -------- Run | Yrd Mat Min Mat Mat Fac Low Low Dat Pro Fac Low Low Zio Pro Fac Upp Upp War Pro Fac Was Fac Ext Cet Arc Hub Res Qua Total Allies 45 | . . 1 1 . . . . . 6 . . . 5 . 1 . . 5 . 1 . . 19 5 . . 1 . Largest Group 16 | . . 1 1 1 . . . . 5 . . . 5 5 1 . . 5 . 1 . . 15 16 14 11 2 . Highest-Rated Group 1043 | . . 31 10 9 . . . . 142 . . . 149 149 26 . . 264 . 56 . . 736 1043 865 627 133 . Highest-Rated Ally 159 | . . 31 10 9 . . . . 41 . . . 39 39 26 . . 64 . 56 . . 159 159 144 96 89 . Total Orders 22 | . . . . . . . . . . . . . . . . 2 . . . 3 . . . . . 3 9 5 STAY 2 | . . . . . . . . . . . . . . . . . . . . . . . . . . 1 1 . ROAM 1 | . . . . . . . . . . . . . . . . . . . . . . . . . . 1 . . FOLLOW 1 | . . . . . . . . . . . . . . . . . . . . . . . . . . . 1 . EXPLORE 3 | . . . . . . . . . . . . . . . . 1 . . . . . . . . . . 2 . RETURN 15 | . . . . . . . . . . . . . . . . 1 . . . 3 . . . . . 1 5 5 Ally Attacks 339 | . . 3 . . . . . . 26 . . . . 37 . . . 30 . 2 . . 93 67 23 55 3 . Total Damage 10020 | . . 42 . . . . . . 897 . . . . 477 . . . 1179 . 67 . . 2728 1880 760 1892 98 . Kills 43 | . . . . . . . . . 3 . . . . 3 . . . 5 . . . . 13 8 4 6 1 . Allies Corrupted 1 | . . . . . . . . . . . . . . . . . . . . . . . . . . 1 . . Allies Melted 1 | . . . . . . . . . 1 . . . . . . . . . . . . . . . . . . . Intel | -11 -10 -10 -9 -8 -7 -7 -7 -7 -6 -6 -6 -6 -6 -5 -5 -5 -5 -5 -4 -4 -4 -4 -4 -4 -4 -4 -3 -3 ------- Run | Yrd Mat Min Mat Mat Fac Low Low Dat Pro Fac Low Low Zio Pro Fac Upp Upp War Pro Fac Was Fac Ext Cet Arc Hub Res Qua Active Infowar (turns) 23428 | . . . 446 1617 1982 591 694 139 1171 2739 1261 960 1355 672 1875 327 333 1088 338 1234 362 579 961 416 442 159 1061 626 Optics 22639 | . . . 408 894 1975 591 694 139 1171 2739 1261 960 1355 672 1875 327 333 1088 338 1234 362 558 961 416 442 159 1061 626 Sensors 11229 | . . . . . 746 591 694 139 1158 2122 1093 915 1355 463 . . . . . . . 505 404 . . . 471 573 IFF 367 | . . . . . . . . . . . . . . . . . . . . 156 158 53 . . . . . . Terrain 1 | . . . . . . . . . . 1 . . . . . . . . . . . . . . . . . . Traps 1509 | . . . . 723 786 . . . . . . . . . . . . . . . . . . . . . . . T.N.C. 241 | . . . 241 . . . . . . . . . . . . . . . . . . . . . . . . . Machine Analysis 9667 | . . . . . . . . . . . . . . . 1816 327 333 1088 338 1234 362 568 961 416 442 159 1061 562 Jamming 1608 | . . . . . . . . . . . . . . . . . . . . . . . . . . . 1035 573 ECM 94 | . . . . . . . . . . . . . . . . . . . . . . . . . . . 94 . Robot Analysis Total 3 | . . . 2 1 . . . . . . . . . . . . . . . . . . . . . . . . Derelict Logs Recovered 11 | . . . . . . 1 3 . 1 . 2 1 1 1 . . . . 1 . . . . . . . . . Drone Launches 33 | . . . . . . . . . . . . . . . . 2 . . . 8 . . . . . 3 10 10 Drone Recoveries 30 | . . . . . . . . . . . . . . . . . . . . 8 . . . . . 2 10 10 Exploration | -11 -10 -10 -9 -8 -7 -7 -7 -7 -6 -6 -6 -6 -6 -5 -5 -5 -5 -5 -4 -4 -4 -4 -4 -4 -4 -4 -3 -3 ------------- Run | Yrd Mat Min Mat Mat Fac Low Low Dat Pro Fac Low Low Zio Pro Fac Upp Upp War Pro Fac Was Fac Ext Cet Arc Hub Res Qua Turns Passed 25210 | 35 217 205 846 2465 1982 591 694 139 1171 2739 1261 960 1355 705 1875 327 333 1088 338 1234 362 579 961 416 442 159 1061 670 Spaces Moved 20508 | 46 377 319 524 1212 959 390 467 94 638 1206 624 502 739 558 2787 492 396 1132 517 1505 369 806 873 285 240 200 1459 792 Core 902 | 46 377 317 161 . . . . . . . . . . . . . . . . . . . . . . . . 1 Treads 1976 | . . . 363 1212 396 . . . . 5 . . . . . . . . . . . . . . . . . . Legs 2850 | . . 2 . . . . . . . 745 624 502 739 238 . . . . . . . . . . . . . . Wheels 2614 | . . . . . 563 390 467 94 638 456 . . . 6 . . . . . . . . . . . . . . Hover 12166 | . . . . . . . . . . . . . . 314 2787 492 396 1132 517 1505 369 806 873 285 240 200 1459 791 Flight . | . . . . . . . . . . . . . . . . . . . . . . . . . . . . . Fastest Speed 30 | 50 50 50 50 155 145 145 145 145 145 160 176 181 181 34 30 53 53 47 49 47 40 49 49 49 49 49 47 47 Average Speed 91 | 50 50 50 126 160 161 145 145 145 159 178 179 181 181 98 42 53 53 49 53 49 52 51 49 75 52 50 50 47 Slowest Speed 480 | 50 50 120 160 240 240 145 145 145 160 480 181 181 181 247 61 53 53 105 54 53 53 118 49 129 117 52 55 59 Overloaded Moves 5 | . . . . . . . . . . . . . . . 3 . . . . . 2 . . . . . . . Propulsion Burnouts . | . . . . . . . . . . . . . . . . . . . . . . . . . . . . . Robots Hopped 1 | . . . . . . . 1 . . . . . . . . . . . . . . . . . . . . . Potential Cave-ins 12 | . . . . . . . . . . 4 . . . . 6 . . . . . . . . . . . . 2 Cave-ins Triggered . | . . . . . . . . . . . . . . . . . . . . . . . . . . . . . Teleports 1 | . . . . . . . . . . . . . . . . . . . . . . . . . . . . 1 Exploration Rate (%) 60 | 3 70 52 46 90 16 65 69 72 62 29 64 66 85 69 53 71 63 94 69 33 98 16 89 75 93 22 29 82 Regions Visited 28 Branch Regions 18 Pre-discovered Areas 7 | . 1 . . 1 . . . 1 1 . . 1 2 . . . . . . . . . . . . . . . Known Exits Taken 21 | . . . . . 1 1 1 1 1 1 1 1 1 1 1 1 1 1 1 . . 1 1 1 1 1 1 . Unknown Exits Taken 5 | 1 1 1 1 1 . . . . . . . . . . . . . . . . . . . . . . . . Scrap Searched 14 | . . . . . . 1 . . . . 2 1 2 3 . . 1 . 4 . . . . . . . . . Spaces Dug 212 | . . . . 5 3 . . . . 37 5 5 . 7 35 6 13 2 . 44 1 17 1 . . 6 12 13 Terrain Destroyed 951 | . . 3 . 57 83 . . . 1 61 23 9 . 17 81 13 29 13 5 82 7 23 19 . . 302 34 89 Melee 27 | . . . . 5 1 . . . . 9 . . . . 2 . . . . . . 9 . . . . . 1 Projectile 383 | . . . . 10 9 . . . 1 39 23 9 . 17 75 13 29 13 5 68 7 14 3 . . 9 17 22 AOE 539 | . . 3 . 42 73 . . . . 13 . . . . 4 . . . . 14 . . 15 . . 293 16 66 Terrain Rammed . | . . . . . . . . . . . . . . . . . . . . . . . . . . . . . Walls Destroyed . | . . . . . . . . . . . . . . . . . . . . . . . . . . . . . Machines Disabled . | . . . . . . . . . . . . . . . . . . . . . . . . . . . . . Actions | -11 -10 -10 -9 -8 -7 -7 -7 -7 -6 -6 -6 -6 -6 -5 -5 -5 -5 -5 -4 -4 -4 -4 -4 -4 -4 -4 -3 -3 --------- Run | Yrd Mat Min Mat Mat Fac Low Low Dat Pro Fac Low Low Zio Pro Fac Upp Upp War Pro Fac Was Fac Ext Cet Arc Hub Res Qua Total 24928 | 55 390 351 666 1526 1201 407 480 97 762 1585 697 529 756 658 3250 537 483 1527 554 1815 467 917 1308 460 515 236 1684 1015 Wait 1816 | . 3 13 50 93 58 8 5 . 33 108 10 . 8 25 156 15 51 202 23 88 28 27 228 119 236 12 88 129 Move 20479 | 45 376 318 523 1211 958 389 464 93 637 1205 623 501 738 557 2786 491 395 1131 516 1505 368 805 872 284 239 199 1458 792 Hop 1 | . . . . . . . 1 . . . . . . . . . . . . . . . . . . . . . Pick Up 205 | 4 1 1 24 20 23 . 1 . 3 19 2 1 2 5 30 2 2 10 . 12 . 10 5 3 2 1 16 6 Fast Attach 187 | 5 . 4 8 16 10 1 2 2 4 14 5 5 2 5 23 4 . 11 . 12 . 9 5 14 8 1 9 8 Attach 101 | . . 3 4 7 5 . . . 1 9 2 1 . 11 20 2 1 7 . 5 1 4 2 3 . 1 7 5 Detach 46 | 1 . . 3 6 . . . . 1 5 2 . . 4 9 . . 2 . 3 1 1 1 3 . . 4 . Swap 263 | . . 1 10 23 26 3 1 . 9 33 12 5 1 7 19 1 . 12 3 25 4 10 7 3 2 3 29 14 Drop 283 | . 1 3 17 33 20 2 4 2 6 27 1 3 4 8 38 6 2 19 . 17 . 14 7 16 6 1 16 10 Fire 1207 | . 9 7 27 108 98 4 2 . 14 144 39 13 . 30 156 16 32 91 12 142 65 19 49 14 1 18 53 44 Melee 102 | . . . . 6 3 . . . 2 13 1 . 1 6 13 . . . . . . 18 10 1 21 . 4 3 Ram . | . . . . . . . . . . . . . . . . . . . . . . . . . . . . . Kick 6 | . . . . . . . . . . 6 . . . . . . . . . . . . . . . . . . Crush 3 | . . . . 3 . . . . . . . . . . . . . . . . . . . . . . . . Escape Stasis 36 | . . . . . . . . . . 2 . . . . . . . . . . . . 30 . . . . 4 Rewire 192 | . . . . . . . . . 52 . . . . . . . . 42 . 6 . . 92 . . . . . Trap 1 | . . 1 . . . . . . . . . . . . . . . . . . . . . . . . . . Miscellaneous . | . . . . . . . . . . . . . . . . . . . . . . . . . . . . . Route ------- -11/Scrapyard -10/Materials (discovered 3 exits: *Mat x2 / [*Min]) -10/Mines (discovered 2 exits: *Mat / [*Exi]) -9/Materials (discovered 2 exits: *Mat / [*Sto]) -8/Materials (discovered 3 exits: *Fac x3) -7/Factory (discovered 2 exits: *Low x2) -7/Lower Caves -7/Lower Caves -7/Data Miner -6/Proximity Caves -6/Factory -6/Lower Caves -6/Lower Caves (discovered 2 exits: *Fac / *Zio) -6/Zion (discovered 2 exits: Dee / *Pro) -5/Proximity Caves -5/Factory (discovered 2 exits: *Upp x2) -5/Upper Caves -5/Upper Caves -5/Warlord -4/Proximity Caves -4/Factory (discovered 5 exits: *Upp x2 / *Ext x2 / Arm) -4/Waste -4/Factory (discovered 5 exits: Upp x2 / *Ext x2 / Arm) -4/Extension (discovered 3 exits: *Res x2 / *Cet) -4/Cetus (discovered 2 exits: *Res / *Arc) -4/Archives (discovered 3 exits: *Res / *Hub x2) -4/Hub_04(d) -3/Research (discovered 4 exits: Res x3 / *Qua) -3/Quarantine (discovered 1 exit: *Res) History --------- Turn | Location | Event 6 | -11/Scrapyard | Discovered new exit (range 16) 36 | -11/Scrapyard | Entered Materials 106 | -10/Materials | Discovered new exit (range 4) 170 | -10/Materials | Discovered new exit (range 16) 238 | -10/Materials | Discovered new exit (range 15) 253 | -10/Materials | Entered Mines 256 | -10/Mines | Received a Mining Laser from a helpful Derelict 268 | -10/Mines | Discovered new exit (range 10) 291 | -10/Mines | Found a hidden stash of uninstalled traps 295 | -10/Mines | Deemed a non-threat by the Exiles lab entrance 295 | -10/Mines | Discovered new exit (range 5) 309 | -10/Mines | Build established: Mutant 312 | -10/Mines | Received a Rocket Launcher from a helpful Derelict 369 | -10/Mines | Assembled infested the area 415 | -10/Mines | Core integrity fell below 50% 422 | -10/Mines | Core integrity fell below 20% 452 | -10/Mines | Lost 8 parts (3n5w) 458 | -10/Mines | Entered Materials 458 | -9/Materials | Evolved 2 slots: Propulsion x1, Utility x1 476 | -9/Materials | Discovered new exit (range 10) 661 | -9/Materials | Discovered new exit (range 11) 885 | -9/Materials | Build established: Scavenger-Mutant 1304 | -9/Materials | Entered another Materials area 1304 | -8/Materials | Accompanied by 1 ally 1304 | -8/Materials | Evolved 2 slots: Utility x2 1999 | -8/Materials | Discovered new exit (range 5) 2249 | -8/Materials | Repaired Hrd. Light Armor Plating? 2249 | -8/Materials | Discovered new exit (range 18) 3031 | -8/Materials | Discovered new exit (range 12) 3131 | -8/Materials | Lost 3 parts (3u) 3152 | -8/Materials | Build established: Mutant 3769 | -8/Materials | Entered Factory 3769 | -7/Factory | Evolved 2 slots: Propulsion x2 4324 | -7/Factory | Repaired Med. Treads? 4531 | -7/Factory | Discovered new exit (range 16) 4572 | -7/Factory | Identified exit to Lower Caves 4720 | -7/Factory | Discovered exit to Lower Caves (range 19) 4879 | -7/Factory | Build established: Skirmisher 4933 | -7/Factory | Cargo convoy interrupted 5054 | -7/Factory | Destroyed 7 combat bots 5730 | -7/Factory | Build established: Mutant 5751 | -7/Factory | Entered Lower Caves 6067 | -7/Lower Caves | Build established: Skirmisher 6088 | -7/Lower Caves | Learned 12 Factory zone layouts 6230 | -7/Lower Caves | Discovered new exit (range 14) 6328 | -7/Lower Caves | Identified exit to Lower Caves 6342 | -7/Lower Caves | Entered another Lower Caves area 6507 | -7/Lower Caves | Learned Factory security intel 6519 | -7/Lower Caves | Encountered a Warlord checkpoint 6561 | -7/Lower Caves | Learned Factory trap positions 6688 | -7/Lower Caves | Learned Factory garrison access intel 6855 | -7/Lower Caves | Discovered new exit (range 13) 7035 | -7/Lower Caves | Identified exit to Data Miner 7036 | -7/Lower Caves | Entered Data Miner 7038 | -7/Data Miner | Discovered new exit (range 6) 7059 | -7/Data Miner | Met Data Miner 7104 | -7/Data Miner | Learned location of Section 7 (-2) 7104 | -7/Data Miner | Acquired the access code to Warlord's prototype stash 7116 | -7/Data Miner | Received God Mode back door access code from Data Miner 7172 | -7/Data Miner | Identified exit to Proximity Caves 7175 | -7/Data Miner | Entered Proximity Caves 7177 | -6/Proximity Caves | Greeted by an Infiltrator in a former 0b10 base 7370 | -6/Proximity Caves | Former 0b10 base attacked by MAIN.C 7502 | -6/Proximity Caves | Repaired Med. Treads 7648 | -6/Proximity Caves | Lost 4 allies 7675 | -6/Proximity Caves | 0b10 base defense nominally successful 8186 | -6/Proximity Caves | Learned Factory terminal intel 8241 | -6/Proximity Caves | Discovered new exit (range 14) 8316 | -6/Proximity Caves | Identified exit to Factory 8346 | -6/Proximity Caves | Entered Factory 8346 | -6/Factory | Evolved 2 slots: Power x1, Utility x1 8347 | -6/Factory | Identified exit to Lower Caves 8348 | -6/Factory | Loaded intel: 114 trap records 8350 | -6/Factory | Loaded intel: 26 terminal locations 8351 | -6/Factory | Loaded intel: 3 garrison access locations 8652 | -6/Factory | Spotted B-75 Beast 8731 | -6/Factory | Build established: Assassin 9281 | -6/Factory | Incoming investigation squad redirected 9354 | -6/Factory | Destroyed 7 combat bots 9667 | -6/Factory | Build established: Skirmisher 9876 | -6/Factory | Fabricated Cld. Aerolev Unit (x1) 9954 | -6/Factory | Fabricated Cld. Aerolev Unit? 10793 | -6/Factory | Build established: Mutant 10958 | -6/Factory | Incoming investigation squad redirected 11085 | -6/Factory | Entered Lower Caves 11122 | -6/Lower Caves | Learned Factory garrison access intel 11216 | -6/Lower Caves | Build established: Skirmisher 11249 | -6/Lower Caves | Spotted B-75 Beast 11281 | -6/Lower Caves | Learned Factory stockpile data 11456 | -6/Lower Caves | Lost 3 parts (1p1n1u) 11474 | -6/Lower Caves | Destroyed B-75 Beast 11903 | -6/Lower Caves | Encountered a Warlord checkpoint 12069 | -6/Lower Caves | Discovered new exit (range 15) 12344 | -6/Lower Caves | Identified exit to Lower Caves 12346 | -6/Lower Caves | Entered another Lower Caves area 12400 | -6/Lower Caves | Discovered new exit (range 6) 12640 | -6/Lower Caves | Learned location of Extension (-4) 12668 | -6/Lower Caves | Encountered a Warlord checkpoint 13284 | -6/Lower Caves | Discovered new exit (range 8) 13297 | -6/Lower Caves | Identified exit to Zion 13306 | -6/Lower Caves | Entered Zion 13362 | -6/Zion | System corruption cleaned by Quarantine Array 13472 | -6/Zion | Discovered new exit (range 20) 13618 | -6/Zion | Learned location of Armory (-4) 13647 | -6/Zion | Identified exit to Deep Caves 13932 | -6/Zion | Gained Derelict followers 13974 | -6/Zion | Found CR-A16's Pointy Stick 14054 | -6/Zion | Met Imprinter 14108 | -6/Zion | Build established: Derelict-Assassin 14141 | -6/Zion | Learned Factory emergency access door positions 14264 | -6/Zion | Learned location of Warlord (-5) 14651 | -6/Zion | Identified exit to Proximity Caves 14661 | -6/Zion | Entered Proximity Caves 14661 | -5/Proximity Caves | Accompanied by 5 allies 14728 | -5/Proximity Caves | Lost 3 allies 15004 | -5/Proximity Caves | Build established: Derelict-Skirmisher 15051 | -5/Proximity Caves | Learned Factory terminal intel 15124 | -5/Proximity Caves | Spotted B-75 Beast 15172 | -5/Proximity Caves | Lost 3 parts (1p1u1w) 15182 | -5/Proximity Caves | Revealed the true nature of CR-A16's Pointy Stick 15185 | -5/Proximity Caves | Core integrity fell below 50% 15191 | -5/Proximity Caves | Destroyed B-75 Beast 15218 | -5/Proximity Caves | Lost 5 parts (3n1u1w) 15255 | -5/Proximity Caves | Attracted the attention of an 0b10 checkpoint 15348 | -5/Proximity Caves | Discovered new exit (range 6) 15349 | -5/Proximity Caves | Identified exit to Factory 15366 | -5/Proximity Caves | Entered Factory 15366 | -5/Factory | Evolved 2 slots: Propulsion x1, Utility x1 15369 | -5/Factory | Loaded intel: 26 terminal locations 15370 | -5/Factory | Loaded intel: 3 garrison access locations 15380 | -5/Factory | Central database locked down 15439 | -5/Factory | Spotted B-75 Beast 15602 | -5/Factory | Discovered new exit (range 5) 15604 | -5/Factory | Identified exit to Upper Caves 15759 | -5/Factory | Watched by a mysterious "MATRIX" hacker 15783 | -5/Factory | Build established: Mutant 16836 | -5/Factory | Lost 8 parts (1p3n2u2w) 16897 | -5/Factory | Fabricated Hvy. Mass Driver (x1) 16954 | -5/Factory | Fabricated Cld. Aerolev Unit? 17241 | -5/Factory | Entered Upper Caves 17469 | -5/Upper Caves | Encountered a Warlord checkpoint 17520 | -5/Upper Caves | Discovered new exit (range 10) 17524 | -5/Upper Caves | Identified exit to Upper Caves 17568 | -5/Upper Caves | Entered another Upper Caves area 17880 | -5/Upper Caves | Discovered new exit (range 10) 17884 | -5/Upper Caves | Identified exit to Warlord 17901 | -5/Upper Caves | Entered Warlord 17922 | -5/Warlord | System corruption cleaned by Quarantine Array 17956 | -5/Warlord | Received a Watcher feed algorithm from an ecstatic Tinkerer 18103 | -5/Warlord | Visited the Vortex Lab 18107 | -5/Warlord | Found Prototype Piercing Weapon 18108 | -5/Warlord | Found Prototype Piercing Weapon 18111 | -5/Warlord | Identified Vortex Lance (x2) 18123 | -5/Warlord | Warlord's base attacked by MAIN.C 18208 | -5/Warlord | Opened Warlord's prototype stash 18211 | -5/Warlord | Found Exp. Targeting Computer 18218 | -5/Warlord | Found Prototype Device 18218 | -5/Warlord | Identified System Purifier 18253 | -5/Warlord | Met Warlord 18326 | -5/Warlord | Warlord forces counterattacked 18362 | -5/Warlord | P-80 Master assimilated allied Slayer 6a 18391 | -5/Warlord | Opened side exit 18439 | -5/Warlord | Spotted Striker 18453 | -5/Warlord | Spotted Striker 18471 | -5/Warlord | Lost 5 allies 18485 | -5/Warlord | Spotted Executioner 18530 | -5/Warlord | Lost 4 allies 18634 | -5/Warlord | Spotted Striker 18682 | -5/Warlord | Spotted Executioner 18742 | -5/Warlord | Spotted Executioner 18777 | -5/Warlord | Destroyed Executioner 18795 | -5/Warlord | Spotted Striker 18798 | -5/Warlord | Warlord base infiltrated, sounded retreat 18831 | -5/Warlord | Spotted Striker 18868 | -5/Warlord | Spotted Striker 18916 | -5/Warlord | Lost 4 allies 18921 | -5/Warlord | Discovered new exit (range 16) 18989 | -5/Warlord | Identified exit to Proximity Caves 18989 | -5/Warlord | Entered Proximity Caves 18992 | -4/Proximity Caves | Lost 13 allies 19080 | -4/Proximity Caves | Spotter reported a threat 19134 | -4/Proximity Caves | Build established: Scavenger-Mutant 19258 | -4/Proximity Caves | Identified exit to Factory 19327 | -4/Proximity Caves | Entered Factory 19327 | -4/Factory | Evolved 2 slots: Utility x2 19705 | -4/Factory | Allied Derelicts emerged from ambush trap array 19757 | -4/Factory | Discovered new exit (range 6) 19827 | -4/Factory | Search patrols dispatched 19920 | -4/Factory | Discovered new exit (range 16) 20007 | -4/Factory | Repaired Centrium Medium Armor Plating? 20327 | -4/Factory | First assault squad dispatched 20342 | -4/Factory | Incoming assault squad redirected 20385 | -4/Factory | Identified exit to Upper Caves 20385 | -4/Factory | Identified exit to Extension 20385 | -4/Factory | Identified exit to Armory 20561 | -4/Factory | Sucked down chute 20561 | -4/Factory | Entered Waste 20576 | -4/Waste | EMP discharged 20597 | -4/Waste | Spotted C-40 Crusher 20613 | -4/Waste | Spotted C-40 Crusher 20613 | -4/Waste | Spotted C-40 Crusher 20644 | -4/Waste | Spotted C-40 Crusher 20644 | -4/Waste | Spotted C-40 Crusher 20658 | -4/Waste | Destroyed C-40 Crusher 20662 | -4/Waste | Destroyed C-40 Crusher 20676 | -4/Waste | EMP discharged 20676 | -4/Waste | System corruption reached 10% 20693 | -4/Waste | Spotted C-40 Crusher 20776 | -4/Waste | EMP discharged 20803 | -4/Waste | Destroyed C-40 Crusher 20866 | -4/Waste | System corruption reached 30% 20876 | -4/Waste | EMP discharged 20889 | -4/Waste | Discovered new exit (range 22) 20918 | -4/Waste | Identified exit to Factory 20923 | -4/Waste | Entered Factory 21199 | -4/Factory | Fabricated Hyp. Mass Driver? 21266 | -4/Factory | Fabricated Cmb. Linear Gravjet? 21469 | -4/Factory | Build established: Hacker-Scout 21502 | -4/Factory | Entered Extension 21559 | -4/Extension | Energy Cycler disabled 21559 | -4/Extension | Rescued a captive Derelict 21561 | -4/Extension | Rescued a captive Derelict 21561 | -4/Extension | Rescued a captive Derelict 21561 | -4/Extension | Rescued a captive Derelict 21562 | -4/Extension | Rescued a captive Derelict 21563 | -4/Extension | Rescued a captive Derelict 21567 | -4/Extension | Rescued a captive Derelict 21573 | -4/Extension | Rescued a captive Derelict 21588 | -4/Extension | Rescued A7 21871 | -4/Extension | Build established: Scavenger-Scout 22046 | -4/Extension | Spotted B-86 Titan 22088 | -4/Extension | Spotted B-86 Titan 22091 | -4/Extension | Discovered new exit (range 12) 22095 | -4/Extension | Destroyed B-86 Titan 22106 | -4/Extension | Destroyed B-86 Titan 22194 | -4/Extension | Lost 3 allies 22388 | -4/Extension | Discovered new exit (range 10) 22389 | -4/Extension | Discovered new exit (range 6) 22391 | -4/Extension | Identified exit to Cetus 22392 | -4/Extension | Identified exit to Research 22463 | -4/Extension | Entered Cetus 22463 | -4/Cetus | Accompanied by 15 allies (A7) 22468 | -4/Cetus | Acquired a Cetus Manufacturing Module code from A7 22473 | -4/Cetus | Spotted Cetus Guard 22473 | -4/Cetus | Spotted Cetus Guard 22476 | -4/Cetus | Spotted Cetus Guard 22476 | -4/Cetus | Destroyed Cetus Guard 22477 | -4/Cetus | Spotted Cetus Guard 22482 | -4/Cetus | Destroyed Cetus Guard 22488 | -4/Cetus | Allies destroyed Cetus Guard 22505 | -4/Cetus | Allies destroyed Cetus Guard 22535 | -4/Cetus | Lost 4 allies 22562 | -4/Cetus | Started Cetus Manufacturing Module 22587 | -4/Cetus | Manufactured an Enhanced Grunt 22612 | -4/Cetus | Manufactured an Enhanced Grunt 22615 | -4/Cetus | Build established: Commander-Mutant 22637 | -4/Cetus | Manufactured an Enhanced Grunt 22640 | -4/Cetus | Escorted A7 to Cetus Mainframe 22649 | -4/Cetus | Discovered new exit (range 21) 22662 | -4/Cetus | Manufactured an Enhanced Grunt 22687 | -4/Cetus | Manufactured an Enhanced Grunt 22703 | -4/Cetus | Spotted Cetus Guard 22703 | -4/Cetus | Spotted Cetus Guard 22706 | -4/Cetus | Spotted Cetus Guard 22707 | -4/Cetus | Spotted Cetus Guard 22714 | -4/Cetus | Allies destroyed Cetus Guard 22723 | -4/Cetus | Allies destroyed Cetus Guard 22727 | -4/Cetus | Discovered exit to Research (range 22) 22736 | -4/Cetus | Allies destroyed Cetus Guard 22739 | -4/Cetus | Allies destroyed Cetus Guard 22770 | -4/Cetus | Met Revision 17 22829 | -4/Cetus | Identified exit to Archives 22879 | -4/Cetus | Entered Archives 22879 | -4/Archives | Accompanied by 14 allies (A7) 22884 | -4/Archives | Received a hacking code to weaken MAIN.C 22940 | -4/Archives | Discovered new exit (range 22) 22945 | -4/Archives | Discovered new exit (range 22) 22953 | -4/Archives | Discovered exit to Research (range 22) 23273 | -4/Archives | Identified exit to Hub_04(d) 23321 | -4/Archives | Entered Hub_04(d) 23321 | -4/Hub_04(d) | Accompanied by 11 allies 23338 | -4/Hub_04(d) | Discovered exit to Research (range 5) 23404 | -4/Hub_04(d) | Network Hub disabled 23404 | -4/Hub_04(d) | Network Hub disabled 23409 | -4/Hub_04(d) | Network Hub disabled 23451 | -4/Hub_04(d) | Spotted Lightning 23451 | -4/Hub_04(d) | Spotted Lightning 23451 | -4/Hub_04(d) | Network Hub disabled 23480 | -4/Hub_04(d) | Entered Research 23480 | -3/Research | Accompanied by 2 allies 23480 | -3/Research | Evolved 2 slots: Propulsion x1, Utility x1 23675 | -3/Research | Identified exit to Research 23680 | -3/Research | Revision forces began assault on 0b10 23699 | -3/Research | Repaired Broken Mapping Drone Bay? 23795 | -3/Research | Build established: Scavenger-Mutant 23797 | -3/Research | Repaired Cmb. Gravmag System? 23798 | -3/Research | Met up with Revision 17++ 24021 | -3/Research | Repaired Centrium Medium Armor Plating? 24033 | -3/Research | Found Gamma Bomb Array 24136 | -3/Research | Fabricated Cmb. Linear Gravjet (x2) 24158 | -3/Research | Spotted B-86 Titan 24165 | -3/Research | Destroyed B-86 Titan 24166 | -3/Research | Fabricated Cmb. Linear Gravjet? 24180 | -3/Research | Research terminal network offline 24362 | -3/Research | Found Prototype Launcher 24362 | -3/Research | Identified Tactical Quantum Warhead 24533 | -3/Research | Spotted B-90 Cyclops 24534 | -3/Research | Discovered new exit (range 11) 24540 | -3/Research | Identified exit to Quarantine 24541 | -3/Research | Entered Quarantine 24581 | -3/Quarantine | Found Alien Artifact 24599 | -3/Quarantine | Found Alien Artifact 24599 | -3/Quarantine | Identified Phase Redirector 24620 | -3/Quarantine | Found Alien Artifact 24734 | -3/Quarantine | Found Alien Artifact 24763 | -3/Quarantine | Targeted by mysterious "MATRIX" hacker 24763 | -3/Quarantine | Discovered exit to Research (range 13) 24800 | -3/Quarantine | Spotted Alpha 7 24814 | -3/Quarantine | Central database locked down 24817 | -3/Quarantine | Unchained authorized (V4-D3R) 24848 | -3/Quarantine | Found Alien Energy Cannon 24848 | -3/Quarantine | Identified Core Cannon 24911 | -3/Quarantine | Build established: Machinist-Scout 24993 | -3/Quarantine | Incoming investigation squad redirected 25057 | -3/Quarantine | Spotted V4-D3R 25098 | -3/Quarantine | Found Alien Artifact 25116 | -3/Quarantine | System corruption reached 10% 25117 | -3/Quarantine | Identified Transdimensional Reconstructor 25117 | -3/Quarantine | Warped through subspace 25148 | -3/Quarantine | Lost 6 parts (2p4u) 25198 | -3/Quarantine | Scanned by Researcher 25199 | -3/Quarantine | System corruption reached 30% 25204 | -3/Quarantine | Core integrity fell below 50% 25209 | -3/Quarantine | Core integrity fell below 20% 25211 | -3/Quarantine | Destroyed by thrown Meson Extractor Last Messages --------------- 25206_ C-55 Analyst system terminally corrupted. 25206_ The unstable cave ceiling collapses. 25207_ Held in stasis. 25207_ C-55 Analyst is analyzing... Smashed by Lrn. Tractor Beam. Smashed by Hyp. Mass Driver+. Smashed by Mapping Drone Bay. Smashed by Earth. Smashed by Cmb. Antigrav System. Smashed by Wall. Smashed by Earth. 25211_ M-28 Smith repairs S-43 Plague. 25211_ Held in stasis. 25211_ C-55 Analyst is analyzing... 25211_ Backup Laser VII tumbles out of repair station. 25211_ Backup Plating VII tumbles out of repair station. Smashed by Backup Laser VII. Smashed by Meson Extractor. Map ----- +----------------------------------------------------+ | #######?####?##?##?#???????# | | # ##??##?????#??????#?## """ | | # ""#???#???#??#?????##### """ | | # ! ""###################?## * """ ##### | | ##### # T"# # #??# ##?# | | # # ""# # #??# #### | | # # ""# # #??# "T" # | | # + # """"" # != ##?# """ # | | """ # # # " "" # == ##?# + | | """ # # # """ # = #??# = # | | """ # #= # " # #??######## # | | # # # """ # ##?######## # | | ]# # # # #????###??# ## | | # ##########+######+#######????#??### | | # ^ !* ############## | | T"" # ^!!% %c% | | """ # ^==* ############ | | ##### ^!==% c c##?############### | | #?#?########+######+########### # ## #? | | ##????# # ! !#####?# #### """ #? | | ?????## c# = ; ### # "" """ #? | | ?#????#T "# ; # ; #""" """ #? | | ????#?#""! ""# """ ; # #"T?? ????? ?????? | | ??##??#!" "!# """ =!%$ ;R#"""?????????? ??? | | ?#?#?##! """ !# """ /! $ # "" "?"??"?? ? ?# | | ?##??########## @ $ #???????"?? ? ## | | ????##???##?#?# * #??????????? #? | | ???#???#?#????###"" "" !!= #? ?? ??? ? ?# | | ??##???????????##""R" ! %= #??????????? ?# | | ????#????##?#???# """[; ! ???? ??? ?#? | | ?????????????#??######### [g ####+####### | | ??#?#?#?##???#???# # c R ###### | | ?????###???????#?# ##=g s # | | ???????##???#????# ! %#### m # | | ???#??##??????#### + g + "" | | ????#?##???#??##?# #/## #8 ## # "" | | ??#?????###??##??# =# #? # # ## # ] "" | | ???#?#????##??#??##+##### #?### "" ## ###### | | ?????####????##??## #?###=##### # """ ## ###### | | ??#???####?####?#?# ##?##=#?#?# # """ ## ###### | | ??????#??####?#???# #?#?# ##??# # ## ##!!! | | ??#?##?#?#?#?######+##?## #???# # ## ##!!! | | ?????????????# #???# ###?# # ## ##!!! | | ????????#????# ! #?### ##??# ######## ## | | ??????#??####" #####/#####+######## ## | | ??????###### # # # T ## | | ??#####"# # ## ! /# # ## | | ??#"""" " #?# + ""T"" # ## "" | | ??# " ########+## """ """ + ## "T | | ?##" "###?##??# ## "&" "&" # # "" | +----------------------------------------------------+ Best States ------------- Heat Dissipation 77 Energy Generation 41 Energy Capacity 740 Matter Stores 300 Matter Capacity 300 Sight Range 22 Robot Scan Range 18 Terrain Scan Density 85 ECM Strength 1 Jamming Range 16 Additional Mass Support 6 Corruption Containment 8 Armor Coverage 600 Resistance: KI 30 Core Shielding 30 Phase Shifting 10 Evasion (%) 69 Targeting Accuracy 12 Core Analysis 6 Recoil Reduction 5 Kinecelleration 30 Salvage Targeting 2 Offensive Hacking 26 Defensive Hacking 12 Authchip Count 2 Trap Extractor Capacity 6 Item Schematics ----------------- Seismic Detector | -10/Materials | Hacked Signal Interpreter | -9/Materials | Hacked Aerolev Unit | -8/Materials | Scanalyzed Huge Storage Unit | -8/Materials | Scanalyzed Combat Drone Bay | -7/Data Miner | Free Lgt. Regenerative Plating | -7/Data Miner | Free Cld. Aerolev Unit | -7/Data Miner | Free Gravity Neutralizer | -7/Data Miner | Free Imp. Lightning Gun | -7/Data Miner | Free Linear Gravjet | -7/Data Miner | Free Adv. Shield Generator | -7/Data Miner | Free Imp. Remote Datajack | -7/Data Miner | Free Adv. Terrain Scanner | -7/Data Miner | Free Hvy. Phase Cannon | -6/Factory | Scanalyzed Imp. Hardlight Generator | -6/Zion | Archive Adv. Cooling System | -6/Zion | Archive IFF Parser | -6/Zion | Archive Adv. Drone Bay | -6/Zion | Archive Nuclear Pulse Thruster | -6/Zion | Archive Matter Neutralizer | -6/Zion | Archive Imp. Antigrav System | -6/Zion | Archive Flexi-carbon Leg | -6/Zion | Archive Imp. Arc Projector | -6/Zion | Archive Hpw. Shock Rifle | -6/Zion | Archive Antigrav System | -6/Zion | Archive Hvy. Treads | -6/Zion | Archive Power Amplifier | -6/Zion | Archive Imp. Reaction Control System | -6/Zion | Archive Imp. Component Analysis Suite | -6/Zion | Archive Hvy. Mass Driver | -6/Zion | Archive Com. Battery | -5/Factory | Extracted Adv. Melee Analysis Suite | -5/Factory | Extracted Adv. Salvage Targeting Computer | -5/Factory | Extracted Imp. Melee Analysis Suite | -5/Factory | Extracted Cmb. Gravmag System | -5/Factory | Scanalyzed Cmb. Linear Gravjet | -4/Factory | Scanalyzed Hyp. Mass Driver | -4/Factory | Scanalyzed Centrium Medium Armor Plating | -3/Research | Scanalyzed Com. Wheel | -3/Quarantine | Hacked Robot Schematics ------------------ M-22 Extractor | -7/Data Miner | Free S-27 Virus | -7/Data Miner | Free B-48 Gladiator | -7/Data Miner | Free H-55 Commando | -7/Data Miner | Free D-63 Destroyer | -7/Data Miner | Free T-07 Excavator | -6/Zion | Archive Fabricated ------------ Cld. Aerolev Unit | x1 | -6/Factory | Authchip Cld. Aerolev Unit | x1 | -6/Factory | Authchip Hvy. Mass Driver | x1 | -5/Factory | Authchip Cld. Aerolev Unit | x1 | -5/Factory | Authchip Hyp. Mass Driver | x2 | -4/Factory | Authchip Cmb. Linear Gravjet | x2 | -4/Factory | Authchip Cmb. Linear Gravjet | x2 | -3/Research | Authchip Cmb. Linear Gravjet | x2 | -3/Research Repaired ---------- Hrd. Light Armor Plating | 15% | -8/Materials Med. Treads | 18% | -7/Factory Med. Treads | 49% | -6/Proximity Caves Centrium Medium Armor Plating | 26% | -4/Factory Mapping Drone Bay | 69% | -3/Research | Broken Cmb. Gravmag System | 12% | -3/Research Centrium Medium Armor Plating | 49% | -3/Research Studied --------- Wheel | -8/Materials | Hacked Hvy. Assault Cannon | -8/Materials | Hacked Arm. Treads | -8/Materials | Hacked Arm. Leg | -6/Factory | Hacked Imp. Proton Missile Launcher | -5/Factory | Hacked Hyp. Mass Driver | -4/Factory | Hacked Cmb. Linear Gravjet | -3/Quarantine | Hacked Alien Tech Used ----------------- Phase Redirector Core Cannon Transdimensional Reconstructor Achievements -------------- 404 Botjacking Deadly Precision Junior Dev Production Line Recruitment Drive The Better Part Of Valor The Robot, The Myth, The Legend Treasure Hunter Tune-up Challenges ------------ None Game ------ Seed PhasingPiercelightDoomcannon Manual? 0 Play Time 07:54:54 Cumulative 420.0 hours Start 2026.09.02 @ 21:21:32 End 2026.09.18 @ 22:19:30 Sessions 13 Manual Loads 0 Difficulty Rogue Special Mode None Game No. 183 Rogue 183 Adventurer 0 Explorer 0 Win Type - Total 22 Types 9/2/6/1/2/0/1/1/0/0 Lore% 75 Gallery% 71 Achievement% 52 Wizard Run 0 Options --------- Layout 2 ASCII 0 Keyboard 1 Movement Numpad Keybinds 0 Fullscreen 2 Font 24/Proggy Map View 50x44 Zoom Use 0% Tactical HUD 1 Map Filters NONE Filters NONE Steam 1 RUN: 8b4457b6-f8f6-4309-84d0-2c262fa4de59